{"text_format":"3","workbook":"xlsx","n_sheets":3,"sheets":["Form","References","Instructions"],"not_rendered":{"images":6,"macros":1,"defined_names":39,"comments":2},"read":"whole","date_system":"1900"}

{"sheet":"Form","index":0,"n_rows":114,"n_cols":12,"rows_kept":114,"merged":[[0,0,0,2],[0,3,0,6],[0,7,0,8],[1,0,1,2],[1,3,1,6],[1,7,1,9],[1,10,1,11],[2,0,2,2],[2,3,2,6],[2,7,2,9],[2,10,2,11],[3,0,3,2],[3,3,3,6],[3,7,3,9],[3,10,3,11],[4,0,4,2],[4,3,4,6],[4,7,4,9],[4,10,4,11],[5,0,5,2],[5,3,5,6],[5,7,5,9],[5,10,5,11],[6,0,6,2],[6,3,6,6],[6,7,6,9],[6,10,6,11],[7,0,7,2],[7,3,7,4],[7,5,7,6],[7,7,7,9],[8,0,8,2],[8,3,8,6],[8,7,8,9],[8,10,8,11],[9,0,9,2],[9,3,9,11],[10,0,10,4],[10,5,10,6],[10,7,10,8],[11,0,11,2],[11,4,11,11],[12,0,12,2],[12,4,12,11],[13,0,13,2],[13,4,13,11],[14,0,14,11],[15,0,15,2],[15,4,15,8],[16,0,16,2],[16,4,16,8],[17,0,17,8],[18,0,18,2],[18,4,18,8],[19,0,19,11],[20,0,20,3],[21,0,21,3],[22,0,22,3],[23,0,23,3],[24,0,24,2],[25,0,25,11],[26,0,26,2],[26,4,26,8],[27,0,27,2],[27,5,27,8],[28,0,28,8],[29,0,29,2],[29,4,29,8],[30,0,30,11],[31,0,31,3],[32,0,32,3],[33,0,33,3],[34,0,34,3],[35,0,35,2],[36,0,36,11],[37,0,37,1],[37,3,37,4],[37,5,37,6],[37,7,37,8],[37,10,37,11],[38,0,38,1],[38,3,38,4],[38,5,38,6],[38,7,38,8],[39,0,39,10],[40,0,40,10],[41,0,41,10],[42,0,42,10],[43,0,43,2],[43,3,43,4],[43,5,43,6],[43,7,43,8],[43,9,47,11],[44,0,44,2],[44,3,44,4],[44,5,44,6],[44,7,44,8],[45,0,45,2],[45,3,45,4],[45,5,45,6],[45,7,45,8],[46,0,46,2],[46,3,46,4],[46,5,46,6],[46,7,46,8],[47,0,47,2],[47,3,47,4],[47,5,47,6],[47,7,47,8],[48,0,48,2],[48,3,48,4],[48,5,48,6],[48,7,48,8],[48,9,48,11],[49,0,49,11],[50,0,50,11],[51,0,51,1],[51,2,51,3],[51,4,51,11],[52,0,52,1],[52,2,52,3],[52,4,52,11],[84,0,84,11],[85,0,85,2],[85,3,85,6],[85,7,85,10],[86,0,86,2],[86,3,86,5],[86,6,86,10],[87,0,87,11],[88,0,88,2],[88,3,88,6],[88,7,88,10],[89,0,89,2],[89,3,89,5],[89,6,89,10],[90,0,90,11],[91,0,91,2],[91,3,91,6],[91,7,91,10],[92,0,92,2],[92,3,92,5],[92,6,92,10],[93,0,93,11],[94,0,94,2],[94,3,94,6],[94,7,94,10],[95,0,95,2],[95,3,95,5],[95,6,95,10],[96,0,96,11],[97,1,97,11],[98,1,98,11],[99,0,99,10],[100,0,100,11],[101,0,101,11],[102,0,102,11],[103,0,103,11],[104,0,104,11],[105,0,105,11],[106,0,106,11],[107,0,107,11],[108,0,108,11],[109,0,109,11],[110,0,110,11],[111,0,111,11],[112,0,112,4],[112,5,112,10],[113,0,113,11]]}
["EMPLOYEE  NAME:",null,null,"Enter employee first/last name\t\t\t",{"$nulls":3},"EMPLOYEE ID/PID:",null,"Enter employee ID","Due to work authorization:","Select One (drop down)"]
["PRIMARY SCHOOL/DEPT/DIV:",null,null,"Select One (drop down)",{"$nulls":3},"PRIMARY DEPARTMENT NAME AND NUMBER:",null,null,"Select One (drop down)"]
["CURRENT PRIMARY EMPLOYEE TYPE:",null,null,"Select One (drop down)",{"$nulls":3},"NEW PRIMARY EMPLOYEE TYPE:",null,null,"Select One (drop down)"]
["CURRENT RANK/TITLE:",null,null,"Select One (drop down)",{"$nulls":3},"NEW PRIMARY RANK/TITLE:",null,null,"Select One (drop down)"]
["CURRENT PRIMARY POSITION NUMBER:",null,null,"Enter current primary position number\t\t\t",{"$nulls":3},"NEW PRIMARY POSITION NUMBER:",null,null,"Enter new primary position number; if no change, enter current number\t"]
["EXISTING SECONDARY APPTS w/STIPENDS? ",null,null,"Select One (drop down)",{"$nulls":3},"DUE TO A NEW SECONDARY APPT w/STIPEND?",null,null,"Select One (drop down)"]
["CURRENT SECONDARY RANK/TITLES:",null,null,"Select One (drop down) or Type in multiple titles",{"$nulls":3},"NEW SECONDARY RANK/TITLES:",null,null,"Select One (drop down) or Type in multiple titles"]
["EXISTING EED & POSITION #'S:",null,null,"Enter end date or At-Will",null,"Enter secondary position #'s ",null,"NEW SECONDARY APPT EED & POSITION #:",null,null,"Enter end date or At-Will","Enter new secondary position #'s"]
["PROPOSED EFFECTIVE DATE:",null,null,"Enter proposed effective date here",{"$nulls":3},"PROPOSED INCREASE IS APPLIED TO THE :",null,null,"Select One (drop down)"]
["SALARY INCREASE REASON:",null,null,"Select One (drop down)"]
["HAS EMPLOYEE HAD OTHER INCREASES THIS FISCAL YEAR?",{"$nulls":4},"Select One (drop down)",null,"DATE OF INCREASE:",null,"Enter date of increase","INCREASE REASON:","Enter reason for increase"]
["JUNE 30th BASE SALARY: ",null,null,{"v":0,"d":"$0"},"NOTE: Use full FTE salaries, include any ARP/LSIand Comp Plan increases;do not enter cents on the form; do not create/enter your own formulas"]
["SECONDARY STIPENDS:",null,null,{"v":0,"d":"$0"},"NOTE: Include secondary stipends/supplements, not task-based compensation such as course overload"]
["JUNE 30th TOTAL SALARY:",null,null,{"$f":"D12+D13","v":{"v":0,"d":"$0"}}]
[]
["CURRENT BASE SALARY:",null,null,{"v":0,"d":"$0"},"NOTE: Include any ARP/LSIand Comp Plan increases",{"$nulls":5},"PERCENT INCREASE TO 6/30 SALARY :",{"$f":"IFERROR((D16-D12)/D12,0)","v":{"v":0,"d":"0.00%"}}]
["CURRENT SECONDARY STIPENDS:",null,null,{"v":0,"d":"$0"},{"$nulls":6},"AMOUNT OF INCREASE TO 6/30 SALARY :",{"$f":"D16-D12","v":{"v":0,"d":"$0"}}]
[{"$nulls":10},"AMOUNT OF INCREASE TO 6/30 STIPEND:",{"$f":"D17-D13","v":{"v":0,"d":"$0"}}]
["CURRENT TOTAL SALARY:",null,null,{"$f":"D16+D17","v":{"v":0,"d":"$0"}},{"$nulls":6},"TOTAL PERCENT OF SALARY INCREASE:",{"$f":"IFERROR((D19-D14)/D14,0)","v":{"v":0,"d":"0.00%"}}]
[]
["Current Funding Source(s) Distribution",{"$nulls":3},"State","F&A","Research","Trust","Total"]
["Enter Current Base Salary Sources $",{"$nulls":7},{"$f":"SUM(E22:H22)","v":{"v":0,"d":"$0"}},{"$f":"IF(D16-I22=0,\"\",\"CHECK $ AMOUNTS\")","v":""},"State",{"$f":"E22+E23","v":{"v":0,"d":"$0"}}]
["Enter Current Stipend Sources $",{"$nulls":7},{"$f":"SUM(E23:H23)","v":{"v":0,"d":"$0"}},{"$f":"IF(D17-I23=0,\"\",\"CHECK $ AMOUNTS\")","v":""},"Non-State",{"$f":"I22+I23-L22","v":{"v":0,"d":"$0"}}]
[{"$nulls":4},{"$f":"E22+E23","v":{"v":0,"d":"$0"}},{"$f":"F22+F23","v":{"v":0,"d":"$0"}},{"$f":"G22+G23","v":{"v":0,"d":"$0"}},{"$f":"H22+H23","v":{"v":0,"d":"$0"}},{"$f":"I22+I23","v":{"v":0,"d":"$0"}},{"$f":"IF(D19-L24=0,\"\",\"CHECK $ AMOUNTS & TOTAL\")","v":""},"Total",{"$f":"SUM(L22:L23)","v":{"v":0,"d":"$0"}}]
["Total Current Funding Source (s)",null,null,"% Distribution",{"$f":"IFERROR(E24/$D19,0)","v":{"v":0,"d":"0%"}},{"$f":"IFERROR(F24/$D19,0)","v":{"v":0,"d":"0%"}},{"$f":"IFERROR(G24/$D19,0)","v":{"v":0,"d":"0%"}},{"$f":"IFERROR(H24/$D19,0)","v":{"v":0,"d":"0%"}},{"$f":"SUM(E25:H25)","v":{"v":0,"d":"0%"}},{"$f":"IF(I25=100%,\"\",\"% MUST equal 100%\")","v":"% MUST equal 100%"},null,{"$f":"\"\"&IF(F24>0,F21,\"\")&\"/ \"&IF(G24>0,G21,\"\")&\"/\"&IF(H24>0,H21,\"\")","v":"/ /"}]
[]
["PROPOSED/CURRENT BASE SALARY:",null,null,{"v":0,"d":"$0"},{"$nulls":6},"PERCENT INCREASE TO CURRENT SALARY:",{"$f":"IFERROR((D27-D16)/D16,0)","v":{"v":0,"d":"0.00%"}}]
["PROPOSED/CURRENT SEC. STIPENDS:",null,null,{"v":0,"d":"$0"},null,"ENTER 0 (ZERO) IF THERE IS NO STIPEND",{"$nulls":4},"AMOUNT  INCREASE TO CURRENT SALARY :",{"$f":"D27-D16","v":{"v":0,"d":"$0"}}]
[{"$nulls":10},"AMOUNT OF INCREASE TO CURRENT STIPEND:",{"$f":"D28-D17","v":{"v":0,"d":"$0"}}]
["RECOMMENDED TOTAL SALARY:",null,null,{"$f":"D27+D28","v":{"v":0,"d":"$0"}},{"$nulls":6},"TOTAL PERCENT OF SALARY INCREASE:",{"$f":"IFERROR((D30-D19)/D19,0)","v":{"v":0,"d":"0.00%"}}]
[]
["Proposed Funding Source(s) Distribution",{"$nulls":3},"State","F&A","Research","Trust","Total"]
[" Enter Proposed Base Salary Sources  $",{"$nulls":7},{"$f":"SUM(E33:H33)","v":{"v":0,"d":"$0"}},{"$f":"IF(D27-I33=0,\"\",\"CHECK $ AMOUNTS\")","v":""},"State",{"$f":"E33+E34","v":{"v":0,"d":"$0"}}]
["Enter Proposed Stipend Sources $",{"$nulls":7},{"$f":"SUM(E34:H34)","v":{"v":0,"d":"$0"}},{"$f":"IF(D28-I34=0,\"\",\"CHECK $ AMOUNTS\")","v":""},"Non-State",{"$f":"I33+I34-L33","v":{"v":0,"d":"$0"}}]
[{"$nulls":4},{"$f":"SUM(E33:E34)","v":{"v":0,"d":"$0"}},{"$f":"SUM(F33:F34)","v":{"v":0,"d":"$0"}},{"$f":"SUM(G33:G34)","v":{"v":0,"d":"$0"}},{"$f":"SUM(H33:H34)","v":{"v":0,"d":"$0"}},{"$f":"SUM(I33:I34)","v":{"v":0,"d":"$0"}},{"$f":"IF(D30-L35=0,\"\",\"CHECK $ AMOUNTS & TOTAL\")","v":""},"Total",{"$f":"SUM(L33:L34)","v":{"v":0,"d":"$0"}}]
["Total Proposed Funding Source (s)",null,null,"% Distribution",{"$f":"IFERROR(E35/$D30,0)","v":{"v":0,"d":"0%"}},{"$f":"IFERROR(F35/$D30,0)","v":{"v":0,"d":"0%"}},{"$f":"IFERROR(G35/$D30,0)","v":{"v":0,"d":"0%"}},{"$f":"IFERROR(H35/$D30,0)","v":{"v":0,"d":"0%"}},{"$f":"SUM(E36:H36)","v":{"v":0,"d":"0%"}},{"$f":"IF(I36=100%,\"\",\"% MUST equal 100%\")","v":"% MUST equal 100%"},null,{"$f":"\"\"&IF(F35>0,F32,\"\")&\"/ \"&IF(G35>0,G32,\"\")&\"/\"&IF(H35>0,H32,\"\")","v":"/ /"}]
[]
["RANGE MIN:",null,{"v":0,"d":"$0"},"RANGE MAX:",null,{"v":0,"d":"$0"},null,"FACULTY DEPT AVG:",null,{"v":0,"d":"$0"},"This section is required for all EHRA requests."]
["50th PERCENTILE:",null,{"$f":"(F38-C38)*0.5+C38","v":{"v":0,"d":"$0"}},"75th PERCENTILE",null,{"$f":"(F38-C38)*0.75+C38","v":{"v":0,"d":"$0"}},{"$f":"(J38-G38)*0.5+G38","v":{"v":0,"d":"$0"}},"EHRA NF REF RATE:",null,{"v":0,"d":"$0"},"EHRA NF COMPA-RATIO:",{"$f":"D27/J39","v":{"$error":"#DIV/0!"}}]
["CUMULATIVE % INCREASE TO 6/30 TOTAL SALARY FOR FISCAL YEAR: ",{"$nulls":10},{"$f":"IFERROR((D30-D14)/D14,0)","v":{"v":0,"d":"0.00%"}}]
["CUMULATIVE $$ INCREASE TO 6/30 TOTAL SALARY FOR FISCAL YEAR: ",{"$nulls":10},{"$f":"D30-D14","v":{"v":0,"d":"$0"}}]
["TOTAL $$ AMOUNT OF STIPEND/SUPPLEMENT INCREASE FOR FISCAL YEAR: ",{"$nulls":10},{"$f":"D28-D13","v":{"v":0,"d":"$0"}}]
["TOTAL INCREASE OF STIPEND/SUPPLEMENT FOR FISCAL YEAR AS % OF 6/30 BASE SALARY: ",{"$nulls":10},{"$f":"IFERROR((D28-D13)/D12,0)","v":{"v":0,"d":"0.00%"}}]
["EMPLOYEE NAME",null,null,"POSITION #",null,"CURRENT SALARY",null,"COMPA RATIO",null,"List relevant comparison positions in same job family/level\nAdditional comps can be listed in the justification section or a list can be submitted\n(Comps can be determined by doing a salary report in TarHeelReports)\n\n"]
[]
[]
[]
[]
[{"$nulls":9},"https://tarheelreports.unc.edu/"]
["SALARY PHILOSOPHY\nProvide how the salary/increase amount was determined; including standardizations, market data & source, internal equity, and any other school specific criteria, i.e. yrs experience, type of degree, rare/unique skill, etc. "]
[]
["Employee Name:",null,{"$f":"D1","v":"Enter employee first/last name\t\t\t"},null,"INCREASE JUSTIFICATION"]
["Effective Date:",null,{"$f":"D9","v":"Enter proposed effective date here"},null,"Provide justification for salary increase by following prompts below"]
{"$rows_empty":31}
["APPROVALS:"]
["Department/Center Head Approval: "]
[{"$nulls":3},"(Type Name)",null,null,"(Type Title)",{"$nulls":4},"Date"]
[]
["Dean/Vice Chancellor Approval: "]
[{"$nulls":3},"(Type Name)",null,null,"(Type Title)",{"$nulls":4},"Date"]
[]
["EHRA HR Office Approval: "]
[{"$nulls":3},"(Type Name)",null,null,"(Type Title)",{"$nulls":4},"Date"]
[]
["Prepared by:"]
[{"$nulls":3},"(Type Name)",null,null,"(Type Title)",{"$nulls":4},"Date"]
["DEPARTMENT CERTIFICATION (required to be completed by originating unit):"]
[null,"By checking this box, the preparer certifies that all existing institutional policies and procedures for employment decisions have been followed (i.e. employment approvals, tenure and promotion process, UNC code compliance, OSHR compliance, and any local University procedures)"]
[null,"By checking this box, the preparer certifies that if this increase is for a secondary (faculty or administrative) appointment outside of the primary department, school, or unit, they have contacted the primary department and have obtained the primary department's approval of the appointment & associated salary increase"]
["Submission Instructions: For all regular & temp to regular EHRA base & all secondary increases, regardless of percentage/reason/duration, submit request via the Salary Adjustment Request ePar or email this form to:",{"$nulls":10},"ehracomp@unc.edu"]
["Faculty: All promotional salary increases, permanent non-promotional adjustments within established faculty salary ranges, academic department Chair, or academic department head appointments (includes Senior Associate Dean) increases NOT greater than $50,000 annually ABOVE June 30 TOTAL compensation; Clinical department Chair, or clinical division head appointments (includes Division Chief), within the SOM or SOD, increases NOT greater than $75,000 annually for the duration of such appointment; temporary salary adjustments with a duration up to 36 months OR up to $50,000 annually ABOVE June 30 base salary, all require EHRA HR Office approval"]
["Faculty: Distinguished Professorships (permanent, not Term Professorships) require Board of Trustees approval"]
["Faculty: Academic department Chair, or academic department head appointments (includes Senior Associate Dean) increases greater than $50,000 annually ABOVE June 30 TOTAL compensation; Clinical department Chair, or clinical division head appointments (includes Division Chief), within the SOM or SOD, increases greater than $75,000 annually for the duration of such appointment; temporary salary adjustments with a duration over 36 months AND $50,000 annually ABOVE June 30 base salary, all require System Office approval"]
["SAAO (includes Chancellors, CEO of UNC Health, CEO of PBS NC): All permanent and temporary salary adjustments require Board of Governors approval"]
["SAAO (inlcudes Provosts, Vice Chancellors, Deans, Other SAAO): All promotional increases (cannot be delegated to Chancellor), permanent non-promotional salary actions that do not exceed EITHER 10% of the June 30 salary OR the 75th percentile of the range (cannot be delegated to the Chancellor), and temporary salary adjustments with a duration up to 36 months OR up to $50,000 annually above the June 30 base salary (cannot be delegated to the Chancellor) require Board of Trustees approval"]
["SAAO (inlcudes Provosts, Vice Chancellors, Deans, Other SAAO): Permanent non-promotional salary increases that exceed EITHER 10% of the June 30 salary OR the 75th percentile of the range; Temporary salary adjustments with a duration exceeding 36 months OR over $50,000 annually above June 30 base salary; Emergency retention salary increases in consultation with CUP Chair, and all requests to exceed the salary range, all require System Office approval"]
["SAAO (inlcudes Provosts, Vice Chancellors, Deans, Other SAAO): Non-promotional salary increases that exceed 10% of the June 30 base salary AND exceed the 75th percentile of the range (must have formal endorsement from institutions Board of Trustees); All other salary actions not otherwise delegated to Board of Trustees or System Office require Board of Governors approval"]
["EPS (includes Assoc/Asst Provosts, Assoc/Asst VC’s, Vice Deans, Assoc/Asst Deans, Athletic Directors, Instructional, Research, IT, and other EPS): All promotional salary increases; Permanent non-promotional salary increases up to a new base salary of $125,000 within the established salary range, and proposed salaries over $125,000 that do not 1) exceed 10% of the June 30 base salary or 2) exceed the 75th percentile of the range, or both; Temporary salary adjustments related to interim, acting, or other time-limited assignments or appointments not to exceeda duration of up to 36 months OR up to $50,000 annually above June 30 base salary, all require EHRA HR Office approval"]
["EPS (includes Assoc/Asst Provosts, Assoc/Asst VC’s, Vice Deans, Assoc/Asst Deans, Athletic Directors, Instructional, Research, IT, and other EPS): Permanent non-promotional salary increases that exceed a new base salary of $125,000 AND 1) exceed 10% of the June 30 base salary or 2) exceed the 75th percentile of the range, or both; Temporary salary adjustments exceeding a duration of 36 months OR $50,000 annually above June 30 base salary, and all requests to exceed the salary range, all require System Office approval"]
["IRIT (includes Head Coaches, Assoc/Asst Coaches): All promotional salary increases; Permanent non-promotional salary increases that do not exceed 25% of the June 30 base salary AND do not exceed $25,000; Temporary salary adjustments related to interim, acting, or other time-limited assignments or appointments not to exceed a duration of up to 36 months OR up to $50,000 annually above June 30 base salary; all require EHRA HR Office approval"]
["IRIT (includes Head Coaches, Assoc/Asst Coaches): Temporary salary adjustments exceeding a duration of 36 months OR over $50,000 annually above June 30 base salary; and all requests to exceed the salary range, all require SO approval"]
["IRIT (includes Head Coaches, Assoc/Asst Coaches): Permanent non-promotional salary increases that exceed 25% of the June 30 salary AND exceed $25,000 required BOG approval"]
["https://hr.unc.edu/academic-personnel/compensation/",{"$nulls":4},"https://hr.unc.edu/employees/policies/ehra-non-faculty-policies/salary-structure/"]
["For questions regarding salary increases, please contact your assigned EHRA HR Consultant                                                                                                                                                                                                                                      Created 3.15.2024.v1"]

{"sheet":"References","index":1,"n_rows":605,"n_cols":290,"rows_kept":605}
[]
[null,"Select One (drop down)"]
[null,"1a - Internal Competitive Event - Employee applies for an internally recruited job vacancy, is selected competitively, and changes jobs to a different position"]
[null,"1b - External Competitive Event - Employee applies for an externally recruited job vacancy, is selected competitively, and changes jobs to a different position"]
[null,"1c - Promotion - EHRA Waiver (use for ALL waivers of recruitment, include waiver reason and date approved by EEO)"]
[null,"1d - Promotion - Tenure Conferral and Academic Rank Promotions (use for all in-rank promotions, not used for recruitments)"]
[null,"2a - Increase in regular job duties or responsibilities; includes reallocation or reclassification of job (use for secondary admin stipends longer than 12 months)"]
[null,"2b - Temporary (36 months or less) adjustment related to a temporary increase in job duties or responsibilities; salary will revert when temporary duties cease"]
[null,"2c - Extension of Existing Temporary Increase Related to Increase in Job Duties or Responsibilities"]
[null,"3 - Retention"]
[null,"7 - Faculty Recruiting and Retention Fund (used when requesting support from SO retention fund)"]
[null,"11 - Request to exceed established salary range"]
[null,"12 - Other (Distinguished Professorships, Work Authorization, or anything not listed)"]
[null,"12b - ARP (Corrections Only)"]
[null,"12e - Other (Market-based increase)"]
[null,"12f - Other (Equity-based increase)"]
[]
[]
[]
[null,"Select One (drop down)","Select One (drop down)"]
[null,"Faculty","EHRA"]
[null,"Non-Faculty","Faculty"]
[null,"Post Doc","Non-Faculty"]
[null,"SHRA","Post Doc"]
[]
[null,"Select One (drop down)"]
[null,"Regular"]
[null,"Temporary",null,null,"AVC"]
[{"$nulls":4},"211000-AVC Real Estate Development"]
[null,"Select One (drop down)",null,null,"213010-AVC Finance and Budget"]
[null,"Yes",null,null,"230110-AVC CS - RM"]
[null,"No"]
[]
[null,"Select One (drop down)"]
[null,"Base"]
[null,"Stipend/Supplement"]
[null,"Base & Stipend/Supplement"]
[]
[null,"Select One (drop down)"]
["S&SA?","Admissions","PRIMARY SCHOOL/UNIT","Dept0","Dept1","Dept2","Dept3","Dept4","Dept5","Dept6","Dept7","Dept8","Dept9","Dept10","Dept11","Dept12","Dept13","Dept14","Dept15","Dept16","Dept17","Dept18","Dept19","Dept20","Dept21","Dept22","Dept23","Dept24","Dept25","Dept26","Dept27","Dept28","Dept29","Dept30","Dept31","Dept32","Dept33","Dept34","Dept35","Dept36","Dept37","Dept38","Dept39","Dept40","Dept41","Dept42","Dept43","Dept44","Dept45","Dept46","Dept47","Dept48","Dept49","Dept50","Dept51","Dept52","Dept53","Dept54","Dept55","Dept56","Dept57","Dept58","Dept59","Dept60","Dept61","Dept62","Dept63","Dept64","Dept65","Dept66","Dept67","Dept68","Dept69","Dept70","Dept71","Dept72","Dept73","Dept74","Dept75","Dept76","Dept77","Dept78","Dept79","Dept80","Dept81","Dept82","Dept83","Dept84","Dept85","Dept86","Dept87","Dept88","Dept89","Dept90","Dept91","Dept92","Dept93","Dept94","Dept95","Dept96","Dept97","Dept98","Dept99","Dept100","Dept101","Dept102","Dept103","Dept104","Dept105","Dept106","Dept107","Dept108","Dept109","Dept110","Dept111","Dept112","Dept113","Dept114","Dept115","Dept116","Dept117","Dept118","Dept119","Dept120","Dept121","Dept122","Dept123","Dept124","Dept125","Dept126","Dept127","Dept128","Dept129","Dept130","Dept131","Dept132","Dept133","Dept134","Dept135","Dept136","Dept137","Dept138","Dept139","Dept140","Dept141","Dept142","Dept143","Dept144","Dept145","Dept146","Dept147","Dept148","Dept149","Dept150","Dept151","Dept152","Dept153","Dept154","Dept155","Dept156","Dept157","Dept158","Dept159","Dept160","Dept161","Dept162","Dept163","Dept164","Dept165","Dept166","Dept167","Dept168","Dept169","Dept170","Dept171","Dept172","Dept173","Dept174","Dept175","Dept176","Dept177","Dept178","Dept179","Dept180","Dept181","Dept182","Dept183","Dept184","Dept185","Dept186","Dept187","Dept188","Dept189","Dept190","Dept191","Dept192","Dept193","Dept194","Dept195","Dept196","Dept197","Dept198","Dept199","Dept200","Dept201","Dept202","Dept203","Dept204","Dept205","Dept206","Dept207","Dept208","Dept209","Dept210","Dept211","Dept212","Dept213","Dept214","Dept215","Dept216","Dept217","Dept218","Dept219","Dept220","Dept221","Dept222","Dept223","Dept224","Dept225","Dept226","Dept227","Dept228","Dept229","Dept230","Dept231","Dept232","Dept233","Dept234","Dept235","Dept236","Dept237","Dept238","Dept239","Dept240","Dept241","Dept242","Dept243","Dept244","Dept245","Dept246","Dept247","Dept248","Dept249","Dept250","Dept251","Dept252","Dept253","Dept254","Dept255","Dept256","Dept257","Dept258","Dept259","Dept260","Dept261","Dept262","Dept263","Dept264","Dept265","Dept266","Dept267","Dept268","Dept269","Dept270","Dept271","Dept272","Dept273","Dept274","Dept275","Dept276","Dept277","Dept278","Dept279","Dept280","Dept281","Dept282","Dept283","Dept284","Dept285","Dept286"]
[null,"Athletics","Select One (drop down)","Select One (Drop Down)"]
[null,"AVC","Admissions","540500-Enrollment Management","541000-Admissions","542000-University Registrar","543000-Scholarships and Student Aid","543100-Scholarships and Aid-Ops","543500-Federal Work Study"]
[null,"Business School","Athletics","270100-Ath Administration","270108-Ath Support Services","270200-Ath Athletic Director","270300-Ath Finley Golf Course ProShop","270400-Ath GOHEELS Productions","270405-Ath Creative Services","270500-Ath IT Support","270600-Ath Carolina Kids Club","270700-Ath Olympic Sports Promotions","270800-Ath Department Specials","270900-Ath Department Endow Income","271000-Ath Business Office","271100-Ath Finley Golf Course","271200-Ath Outdoor Facility Oper","271202-Ath Boshamer Stadium","271203-Ath Navy Field","271204-Ath Indoor Practice Facility","271205-Ath Finley Fields","271206-Ath Tennis Facility","271207-Ath Kenan Stadium","271208-Ath Soccer/Lacrosse Stadium","271209-Ath McCaskill Soccer Center","271210-Ath Karen Shelton Stadium","271211-Ath Eddie Smith Field House","271212-Ath Anderson Softball Stadium","271213-Ath Loudermilk Center","271214-Ath Golf Team Facility","271215-Ath Carmichael Arena","271216-Ath Turf and Grounds","271217-Ath 216 Finley Facility","271218-Ath Scoreboard Maintenance","271219-Ath Other Facilities","271220-Ath Media and Comm Center","271230-Ath Transportation","271275-Ath Finley Field Renovations","271277-Ath Kenan Stadium Renovations","271279-Ath Other Facility Renovations","271300-Ath Equipment Office","271400-Ath Ticket Office","271500-Ath Ticket Office Transactions","271600-Ath Event Management","271605-Athletics Parking","271700-Ath Leadership Academy","271800-Ath Memorabilia Room","272100-Ath Academic Support Program","272200-Ath Communications","272300-Ath Sports Marketing","272305-Ath Data Analytics","272400-Ath Strength and Conditioning","272401-Ath Olympic Strength","272500-Ath Student Services","272600-Ath Cheerleaders","272700-Ath Colonade Group","272800-Ath Koury Natatorium","272900-Ath Ernie Williamson AthltcCtr","273000-Ath Educational Foundation","273100-Ath Smith Center","273200-Ath Basketball museum","273300-Ath Concessions","273400-Ath Kenan Football Center","273500-Ath Football Office","273600-Ath Drug Testing","273700-Ath Sports Medicine","273800-Ath Football Video","273900-Ath Football Coaches Clinic","274000-Ath Men's Basketball","274400-Ath Educational Fdn Inc","274500-Ath Olympic Sport Administratn","274600-Ath Olympic Sports Post-Season","274700-Ath Compliance","274800-Sports Nutrition","275000-Ath Baseball Office","275100-Ath Track-Cross Country","275200-Ath Mens Tennis","275300-Ath Dir of Tennis Facilities","275400-Ath  Mens Golf","275500-Ath Swimming","275600-Ath  Mens Lacrosse","275700-Ath Mens Soccer","275800-Ath Wrestling","275900-Ath Fencing","276500-Ath Rowing","276600-Ath Womens Basketball","276700-Ath Womens Tennis","276800-Ath Field Hockey","277000-Ath Gymnastics","277100-Ath Softball","277200-Ath Volleyball","277300-Ath Womens Soccer","277400-Ath Womens Lacrosse","277500-Ath Womens Golf","279000-Ath Olympic Sp Admin","279100-Ath Nike Cup","279300-Ath Dept Game/Event","279400-Ath Smith Center Events","279600-Ath Executive Cup","279900-Ath General Receipts"]
[null,"College of Arts & Sciences","AVC","240100-FS-Administrative Services","240200-FS-Shop 240200","240300-FS - Engineering Info Services","240500-FS-Const Svcs and Mgt","240700-FS - Capital Improvements","241000-FS-Facilities Operations","241100-FS-Maintenance Projects","241200-FS-Operations","242000-FS-Housekeeping Svcs","242001-FS-Housekeeping Svcs-Zone 01","242002-FS-Housekeeping Svcs-Zone 02","242003-FS-Housekeeping Svcs-Zone 03","242004-FS-Housekeeping Svcs-Zone 04","242005-FS-Housekeeping Svcs-Zone 05","242006-FS-Housekeeping Svcs-Zone 06","242007-FS-Housekeeping Svcs-Zone 07","242008-FS-Housekeeping Svcs-Zone 08","242009-FS-Housekeeping Svcs-Zone 09","242010-FS-Housekeeping Svcs-Zone 10","242011-FS-Housekeeping Svcs-Zone 11","242012-FS-Housekeeping Svcs-Zone 12","242013-FS-Housekeeping Svcs-Zone 13","242014-FS-Housekeeping Svcs-Zone 14","242015-FS-Housekeeping Svcs-Zone 15","242016-FS-Housekeeping Svcs-Zone 16","242017-FS-Housekeeping Svcs-Zone 17","242018-FS-Housekeeping Svcs-Zone 18","242019-FS-Housekeeping Svcs-Zone 19","242021-FS-Housekeeping Svcs-Zone 21","242022-FS-Housekeeping Svcs-Zone 22","242023-FS-Housekeeping Svcs-Zone 23","242025-FS-Housekeeping Svcs-Zone 25","242026-FS-Housekeeping Svcs-Zone 26","242027-FS-Housekeeping Svcs-Zone 27","242030-FS-Housekeeping Svcs-Asst Dir","242031-FS-Housekeeping Svcs-Eve AD","242040-FS-Housekeeping Svcs-Night N","242041-FS-Housekeeping Svcs-Night S","242042-FS-Housekeeping Svcs-Training","242043-FS-Housekeeping Svcs-OS1","243000-FS-Facilities Plan and Design","243001-FS-FPD Svcs-Project Mgt","243002-FS-FPD Svcs-Interior Design","243003-FS-FPD Svcs-Design","243100-FS-FPD- Capital Project Mgmt","243200-FS-FPD-Interior Design","243300-FS-FPD-Design Services","243400-FS-FPD-Tech Group","244000-FS-Grounds Services","244001-FS-Grounds-Administration","244002-FS-Grounds-Forrester Svcs","244003-FS-Grounds-Landscape Maint N","244004-FS-Grounds-Landscape Install","244005-FS-Grounds-LS Maint Hsng/Pkng","244006-FS-Grounds-Housing","244007-FS-Grounds-Stormwater","244008-FS-Grounds-Rizzo","245000-FS-Building Services","245100-FS-Bldg Svcs-HVAC","245101-FS-Bldg Svcs-HVAC-Aux Equip","245102-FS-Bldg Svcs-HVAC-Controls","245103-FS-Bldg Svcs-HVAC-DDC","245104-FS-Bldg Svcs-HVAC-Refrig","245105-FS-Bldg Svcs-HVAC-Shop","245120-FS-Bldg Svcs-HVAC-2nd Shift","245200-FS-Bldg Svcs-Campus Maint","245201-FS-Bldg Svcs-CMaint-Plumbing","245202-FS-Bldg Svcs-CMaint-Carpentry","245203-FS-Bldg Svcs-CMaint-Electrical","245204-FS-Bldg Svcs-CMaint-SAC","245205-FS-Bldg Svcs-CMaint-Masonry","245206-FS-Bldg Svcs-Cmaint-Insulation","245207-FS-Bldg Svcs-CMaint-Exteriors","245208-FS-Bldg Svcs-CMaint-245208","245220-FS-Bldg Svcs-CMaint-2nd Shift","245300-FS-Bldg Svcs-Life Safety andAC","245301-FS-Bldg Svcs-LSAC-Generator","245302-FS-Bldg Svcs-LSAC-LS Systems","245303-FS-Bldg Svcs-LSAC-Hardware","245304-FS-Bldg Svcs-LSAC-PM Cntrcts","245320-FS-Bldg Svcs-LSAC-2nd Shift","245400-FS-Bldg Svcs-Housing Maint","245401-FS-Bldg Svcs-HMaint-Store","245403-FS-Bldg Svcs-HMaint-AccConData","245404-FS-Bldg Svcs-HMaint-PestCont","245405-FS-Bldg Svcs-HMaint-Carpentry","245406-FS-Bldg Svcs-HMaint-HVAC","245409-FS-Bldg Svcs-HMaint-South","245410-FS-Bldg Svcs-HMaint-SouCamp","245411-FS-Bldg Svcs-HMaint-Electrical","245412-FS-Bldg Svcs-HMaint-Paint","245413-FS-Bldg Svcs-HMaint-Locksmith","245500-FS-Bldg Svcs-EMCS","245501-FS-Bldg Svcs-EMCS-Controls","245502-FS-Bldg Svcs-EMCS-DDC","245600-FS-Bldg Svcs-OWRR","245601-FS-Bldg Svcs-OWRR-Operations","245700-Facilities Operations Support","245702-FS-Bldg Svcs-Shop 245702","246000-FS-Construction","246001-FS-Con-Project Mgmt","246002-FS-Con-Contract Admin","246003-FS-Const Svcs-Shop 246003","246100-FS-Con-Shop 246100","246101-FS-Con-Shop 246101","246200-FS-Con-Construction Services","246201-FS-CS-Plumbing","246202-FS-CS-Carpentry","246203-FS-CS-Electrical","246204-FS-CS-Sheetmetal","246205-FS-CS-Small Jobs","246206-FS-CS-Painting","246207-FS-CS-Signs","246300-FS-Con-Estimating - Scheduling","246400-FS-Con-Construction Management","246402-FS-Const Mgmt Shop","247000-FS-Engineering - Construction","247001-FS-Energy Mgmt","247002-FS-FAC-Engineering","247100-FS-Eng-Energy Mgmt","247101-FS-EM-Commissioning","247200-FS-Eng-Facilities Engineering","248000-FS-Administration","248001-FS-Admin-Technology Svcs","248002-FS-Admin-Capital Accounting","248003-FS-Admin-Fin Rptg and Budgets","248004-FS-Admin-Bus and Fin Systems","248005-FS-Admin-Cost Accounting","248006-FS-MtrFlt,Non FSMV","248100-FS-Admin-Central","248200-FS-Admin-Human Resources","248201-FS-Admin-HR-Training","248300-FS-Materials and Logistics","248301-FS-ML Warehouse Ops","248400-FS-Garage Ops","248401-FS-Garage Ops - Grounds","248402-FS-Garage Ops - Motor Pool","213000-Sr Asst VC and Treasury","213010-AVC Finance and Budget","213100-Finance Commun and Training","213200-University Cashier","213300-Treasury Services","213310-Debt Management","213320-Treasury Operations","213330-Cash Management","213340-Insurance and Risk Management","213400-Controller and Ent Fin Acctg","213410-Financial Reprt and Mgmt Svcs","213420-Accounting Services","213430-Payroll Services","213440-Budget Office","213450-Assoc Entities and Invest Actg","213510-Fin Data Analytics-Reporting","213600-Procurement and Strategic Ops","213610-Purchasing Services","213620-Accts Payable and Vendor Svcs","213630-Travel Services","213640-Eprocurement - Materials Mgmt","213650-Procurement Svcs Operations","213660-Logistics","213661-MMD-Dental Stockroom","213662-MMD-General Storeroom","213663-Central Receiving","213664-Surplus Property","213665-MMD-Scientific Supply","213670-Strategic Program and Sys Ops","214000-Continuous Improve - BI","214100-Enter Fin Rep Analysis - BI","214200-Cont Improve - Staff Develop","214300-Finance Business Analysis","214410-Policy and Analysis","216000-Budget Planning and Analysis","216500-Capital Plan and Project Fin","211000-AVC Real Estate Development","211100-PropOfc-Managed Properties","211110-PropOfc-Residential Properties","211120-PropOfc-Commercial Properties","211121-PropOfc-Commercial - Office","211122-PropOfc-Commercial - Retail","211130-PropOfc-Land-Mngd Properties","211200-PropOfc-Leasing Operations","211900-Carolina Inn Administr Ctrl","212000-Academic Finance Office","223000-Student Stores","223010-Student Store Administration","223020-Student Store Accounting","223030-Student Store IT Support","223040-Student Store Operations","223050-Student Store Warehouse","223060-Student Store Display - Adv","223310-Student Store Custom Pub","223320-Student Store Health Affairs","223321-SS  Health Affairs Daniels","223330-Student Store Text Books","223340-Student Store Bulls Head","223350-Student Store Computers","223360-Student Store School Supplies","223370-Student Store Clothing","223371-SS  Clothing Daniels","223380-SS  Post Office","223390-Student Store Graduation","223410-Student Store Pit Stop","223411-Student Store Temp Pool","223412-Student Store Friday Cnt","223413-Student Store Front Regs","223420-Student Store Gifts","223421-Student Store Sales Flr Mngrs","223430-Student Store Printing","223431-Student Store E-Commerce","224110-AS Print Shop","224200-AS Copier Services","224210-AS Carolina Managed Print Svcs","224220-AS CS Laser Printer Service","224300-AS Laundry Services","224310-AS LS Laundry Student Coin Op","224320-AS LS Laundry Department","224400-AS UNC One Card","224410-AS OC Academic Affairs","224420-AS OC Health Affairs","224430-AS OC Revenue","224440-AS OC Office Operation","224450-AS OC Banking Services","224460-AS OC CBORD Maintenance","224510-AS AC Central Account","224610-AS PO Central Account","224710-AS FS Operations","224720-AS FS Carolina Dining","224730-AS FS Food Service Student Fee","224740-AS FS Food Sevice Vending","224750-AS FS CSU-Snack Bar Admin","224760-AS FS CSU-AOB Snack","224770-AS FS CSU-Atrium Snack","224780-AS FS CSU-Blue Ram Snack","224790-AS FS CSU-Law Bar Snack","224791-AS FS CSU-Dental Sch Snack","224792-AS FS CSU-Bell Tower Snack","224800-AS CM Campus Mail Svcs","224810-AS CM Campus Mail Ext","224820-AS CM Campus Mail Int","224900-AS GA Central Account","224910-AS GA Billing General","224950-AS Print Stop","224951-AS Student Stores Admin","225000-Transportation and Parking","225001-Trans and Parking Director","225401-Parking","225701-Transportation","226000-Sustainability Office","227010-ES Admin","227020-ES ITS","227030-ES EMCS","227110-ES CG","227140-ES CG Storeroom","227210-ES EDS","227280-ES ED Utilities Storeroom","227310-ES CW","227410-ES Water/Sewer","227510-ES NP Water","227610-ES Stormwater","227710-ES Gas","227910-ES Other Funds","228000-Trademark Licensing","228010-Trademark Licensing Ops","229001-AS AF UNC Press","229002-AS AF Daily Tar Heel","229003-AS AF Morehead-Cain","229004-AS AF EPA","229005-AS AF Other","234801-DPS Parking","234901-DPS Transportation","236310-ST Sustainability"]
[null,"Executive Director of the Arts","Business School","330100-Kenan-Flagler Bus Sch","330500-K F Sch Bus Fdn","331600-Kenan Institute of Private Ent","331700-SBTDC KFBS Regional Svc Ctr"]
[null,"Finance & Operations","College of Arts & Sciences","300100-Arts and Sciences Deans Office","300101-Arts and Sciences Foundation","300102-CAS Accounting Shared Services","300103-CAS HR Shared Services","300104-CAS Facilities Shared Services","301000-Arts and Sci Information Svcs","302100-Academic Advising","302200-Honors","302201-Distinguished Scholarships","302202-Winston House","302203-Honors Study Abroad Program","302204-Chancellors Science Scholars","302300-Robertson Scholars Prog","302400-Center for Student Success","302401-Writing and Learning Center","302402-Summer Bridge","302500-Undergraduate Education","302501-Undergraduate Curricula","302502-First Year Seminars","302503-Student Retention","302504-Instructional Innovation","302600-Undergraduate Research","310100-Art - Art History","310200-Dramatic Art","310201-PlayMakers Repertory","310300-Music","311100-American Studies","311200-Arts and Humanities Institute","311300-Classics","311400-Communication","311401-Writing for Screen   Stage","311500-English and Comp Literature","311600-Germanic and Slavic Lang Lit","311700-Carolina Public Humanities","311800-Linguistics","311900-Philosophy","312000-Religious Studies","312100-Romance Studies","312200-Study of American South","312300-Womens and Gender Stds","312301-Sexuality Studies","312400-Jewish Studies","312500-Civic Life and Leadership","312501-Program for Public Discourse","313100-African Studies Center","313200-Carolina Asia Center","313300-European Studies Center","313400-GEC Building Operations","313500-Global Studies","313600-Middle East - Islamic Studies","313700-Slavic Eur E Europ Stds Ctr","313800-Study Abroad","313900-Study of the Americas","315100-Aerospace Studies","315200-African Afrl-Amer and Diaspora","315300-Anthropology","315400-Archaeology","315500-Asian & Middle Eastern Studies","315600-City and Regional Planning","315700-Economics","315701-Entrepreneurship","315800-Geography","315900-History","315901-Medieval and Early Modern","316000-Military Science","316100-Naval Science","316200-Peace War and Defense","316300-Political Science","316400-Public Policy","316500-Sociology","316600-Urban and Regional Stds Ctr","316601-Community Capital","318000-Earth Marine Environmt Sci","318001-Institute of Marine Sciences","318100-Applied Physical Sciences","318102-BeAM@CAROLINA","318200-Biology","318300-Chemistry","318301-Chemistry Cores","318302-CH Analytical and Nanofab Lab","318400-Computer Science","318500-Environment Ecology Energy Prg","318600-Exercise and Sport Science","318601-Campus Recreation","318700-Geological Sciences","318800-Marine Sciences","318900-Mathematics","319000-Physics and Astronomy","319100-Psychology and Neuroscience","319200-Statistics and Operations Res","319300-Biomedical Engineering-UG","319500-Convergent Science"]
[null,"Graduate School","Executive Director of the Arts","506000-Exec Dir for the Arts"]
[null,"HR & EOC","Finance & Operations","210100-VC Finance and Operations","215000-SCE - Operations","215100-SCE - Human Resources","215200-SCE - Finance","215300-SCE - IT","215400-SCE - Communications and Mktng","215500-SCE - Cont Imp Staff Dev Eng","220000-AVC Campus Enterprises - Bud","221010-NC Collaboratory","221020-AB Business Office HR","221030-AB Business Office Finance","221040-AB Business Office IT","221050-AB Business Office Communicat"]
[null,"IEED Innovation_Entrepreneur_Econ_Dev","Graduate School","390100-Grad School"]
[null,"IIRM Inst Integrity & Risk Mgmt","HR and EOC","201000-The Employee Forum","260010-HR_EOC - Ofc of ViceChancellor","260020-HR_EOC - Communications","260030-HR_EOC - Business","260040-UNC Chapel Hill Emeritus/Ret","260100-Human Resources","260101-HR_EOC - Operations","260102-HR - Benefits-Leave-WellBeing","260103-HR - Class and Comp","260104-HR - Emp and Mgmt Relations","260105-HR - Employment and Staffing","260106-HR - EHRA Personnel Admin","260107-HR - Org and Prof Dev","260108-HR Information Mgmt","260109-HR - HR Records","260110-HR - Executive Talent Mgmt","263000-Equal Oppty and Compliance","266000-Employee Forum"]
[null,"ITS","IEED","200300-Innovation and Entrepreneurshp","201400-VC IEED","201401-IEED - Office Tech Commercial","201410-IEED - VC for Innovation","201420-IEED - Innovate Carolina","201430-IEED - Kickstart","201440-IEED - Carolina Angel Network","201450-IEED-Off Inn & Des for Pub Gd"]
[null,"Public Affairs","IIRM Inst Integrity & Risk Mgmt","230000-AVC Campus Safety - Risk Mgmt","230100-VC Instit Integ and Rsk Mgmt","230110-AVC CS - RM","230120-Emergency Mgt and Planning","230200-Conflict of Interest Program","230300-Privacy Office","230400-Export Compliance Office","230500-Ethics Integrity and Plcy Mgt","230510-EHS Central Account","230511-EHS UEOHC","230512-EHS Hospital Contracts","230600-Project Mngt, Sys & Investig","230700-Chief Compliance Officer","230901-ES F and A Grant Funds","230902-ES Renewable Energy Fee","234001-UPD Admin","234401-UPD Police","234501-UPD Security","235000-Risk Management Services","239810-Quail Roost","239910-Horace Williams Airport"]
[null,"Office of the Chancellor","ITS","600100-ITS - Info Tech Svcs","601000-ITS - VC - CIO","602000-ITS - Information Security","603000-ITS - EA-Connect Carolina","603500-ITS - Data Rept and Middleware","604000-ITS - Finance and Admin","605000-ITS - IT Infrastructure","606000-ITS - Educational Technologies","607000-ITS - Customer Experience","607500-ITS - CCI - Car Comp Initiativ","607700-ITS - CRC - Comp Repair Center","607800-ITS - Software Distribution","608000-ITS - Comm Technologies","609000-ITS - Student Tech Support","609500-ITS - Projects","615000-Research Computing","617000-Connect Carolina"]
[null,"Office of the Provost","Office of the Chancellor","200100-Office of the Chancellor","200150-Chancellor's Science Scholars","200200-Carolina Counts","200600-UNC Management Company","200700-Internal Audit","200800-Alumni Assoc Office","200900-Office Faculty Governance","201100-University Ombuds Office","202500-University Ceremonies"]
[null,"Office of University Counsel","Office of the Provost","264000-Diversity and Inclusion","395100-Summer School Administration","501001-OEVCP - Provost Commitments","501002-OEVCP - Provost Operating","501101-OEVCP - Provost Initiatives","501200-Office Interprof Edu Practice","501300-VP Equity and Inclusion","501301-UO Diversity and Inclusion","505000-Inst Research and Assessment","506000-Exec Dir for the Arts","520100-Academic Commty Engagmnt-UBC","520500-Ackland Art Museum","520700-American Indian Center","521000-Acad Sup Prog Student-Athletes","521100-Carolina Center for Public Svc","521102-CCPS - APPLES","521300-Center for Faculty Excellence","521400-Carolina Seminars","521500-Carolina Womens Center","523000-Inst African American Research","523500-Partnerships in Aging Program","524000-Marine Sciences Program","524500-Morehead Planetarium","525000-NC Botanical Garden","525002-Botanical Garden Fdn","525200-Carolina Higher Ed Opp Pgms","525202-CHEOP Trio Programs Offices","526000-Carolina Latinx Center","526500-Asian American Center","527500-Wm Ida Friday Ctr-Cont Educ","527502-Wm Ida Friday Ctr-for credit","527503-Wm Ida Friday Ctr-non-credit","527600-Carolina Ofc - Online Learning","527601-Digital and Lifelong Learning","528000-Sonja H Stone Center","529000-World View"]
[null,"Ombuds Office","Office of University Counsel","200400-University Counsel"]
[null,"School of Data Science and Society","Ombuds Office","201100-University Ombuds Office"]
[null,"School of Dentistry","Public Affairs","257000-VC Public Affairs","257001-Secretary of the University","257002-UNC-CH Board of Trustees","257003-State Government Relations","257004-Federal Affairs"]
[null,"School of Education","School of Data Science and Society","397100-School of Data Sci and Society"]
[null,"School of Government","School of Dentistry","430100-ASOD Dean's Office","430110-ASOD Finance","430120-ASOD HR","430200-ASOD Academic Affairs","430210-ASOD Academic Affairs Grad","430300-ASOD Information Systems","430400-ASOD Support Services","430500-Dental Ecology","431100-ASOD Continuing Education","431500-ASOD Clinical Operations","431510-ASOD Physician Billing","431600-Graduate Student Clinic","432000-Endodontics","433000-Operative Dentistry","433500-ASOD Diagnostic Sciences","433510-ASOD Oral Pathology","433520-ASOD Oral Radiology","433530-ASOD Oral Pain","433540-ASOD Oral Sleep","433550-ASOD Oral Microbiology","434000-ASOD Craniofacial Surgical Car","434100-ASOD Oral Medicine","434200-ASOD Oral Maxillofacial Surg","434300-ASOD Craniofacial Center","434400-ASOD Geriatrics Special Care","434500-ASOD Orthodontics","435000-ASOD Pediatric Public Health","435100-ASOD Pediatric Dentistry","435200-ASOD Public Health","435500-Periodontology","436500-ASOD Comprehensive Oral Health","436510-ASOD Endodontics","436520-ASOD Operative Dentistry","436530-ASOD Periodontology","436540-ASOD Prosthodontics","436550-ASOD Dental Hygiene","436560-ASOD Generalists","437500-ASOD Discovery Innovat & Res","437600-ASOD Oral Craniofacial Hth Sci","438000-ASOD Dental Faculty Practice","439000-ASOD Dental Foundation"]
[null,"School of Information & Library Sciences","School of Education","340100-School of Education","340300-UNCCH FDN FBO Sch of Education","340500-Lab School"]
[null,"School of Journalism & Media","School of Government","375100-SOG Sch of Government","375101-SOG Programs","375102-SOG Strat Comm","375103-SOG Business Operations","375104-SOG Information Management","375105-SOG Development","375107-SOG Facilities","375109-SOG Library","375200-SOG Sch of Government Fdn","375300-SOG MPA Program","375400-SOG MPA Online Program","375500-SOG Judicial College","375501-Ctr Public Leadership Govern","375503-SOG Public Defense Education","375505-SOG NCIMPACT","375506-Criminal Justice Innov Lab","375507-SOG Lead for NC","375509-SOG Benchmarking","375600-SOG Legislative Reporting Svc","375700-SOG Environmental Finance Ctr","375800-SOG Ctr for Public Technology","375900-SOG Dev Finance Initiative"]
[null,"School of Law","School of Information & Library Sciences","370101-Sch of Inform and Libr Science"]
[null,"School of Medicine","School of Journalism & Media","350100-School of Journalism and Media","353000-School of Journ and Media Fdn"]
[null,"School of Nursing","School of Law","360001-School of Law","360110-Law Administration","360120-Law Facilities","360130-Law IT","360140-Law Advancement","360150-Law Alumni Relations","360160-Law Communications","360170-Law Foundation","360410-Law Faculty","360420-Law Faculty Research RA","360430-Law Faculty Profess Developmnt","361010-Law Deans Office","361020-Law Academic Deans","361030-Katherine Everett Law Library","361040-Law Trial Advocacy","361050-Law Externship","361100-Law Clinic","361200-Law WLRC","361300-Law International Programs","361400-Law AEP","362000-Law CLE","363010-Law Admissions","363020-Law Student Services Office","363022-Law Public Service","363023-Law Student Organizations","363030-Law CDO","363040-Law Scholarships and LRAP","363510-Law Center for Banking","363520-Law Center for Civil Rights","363530-Law Center for Poverty","363540-Law CE3","363550-Center for Media Law - Policy","363570-UNC Law Int for Innovation"]
[null,"School of Pharmacy","School of Medicine","400101-AHEC","405501-Department of Health Sciences","405502-Health Sciences - CLDS","405503-Health Sciences - SPHS","405504-Health Sciences - Rad Sci","405505-Health Sciences - CLS","405506-Health Sciences - CRMH","405507-Health Sciences - PT","405508-Health Sciences - OT","405509-Health Sciences - PA Program","405510-Health Sciences - NDSS","410101-UNCFP Administration","411201-Emergency Medicine","411202-Emergency Medicine-Psychiatry","411205-Emergency Medicine-Research","411401-Medicine - Dept of","411403-Medicine - HouseStaff","411404-Medicine Hospitalist","411405-Medicine - Cardiology","411406-Medicine - Genetics","411410-Medicine-Endocrinology","411420-Medicine-Gastroenterology","411427-Medicine - MHI","411430-Medicine-Internal Medicine","411440-Med-Geriatric Medicine","411450-Medicine-UNCP A Rheumatology","411451-Med-P A Allergy and Immunology","411460-Med-Infectious Diseases","411462-Med-ID Trnsplt Compromised Hst","411470-Med-Nephrology","411480-Med-Pulmonary","411490-Medicine-Hematology","411491-Medicine-Oncology","411492-Medicine-HemOnc Sanford","411493-Med-Hemophilia Trtment Center","411494-Med-UNC Blood Research Center","411499-Medicine - AHEC","411601-Family Medicine","411801-Neurology","411805-Neurology-Pediatrics","411810-Neurology-Cognitive Mem Dis","411815-Neurology-ICU","411820-Neurology-Movement Disorders","411825-Neurology-Neuroimmunology","411830-Neurology-Neuromuscular","411835-Neurology-Oncology","411840-Neurology-Sleep","411845-Neurology-Epilepsy","411850-Neurology-Stroke","411855-Neurology-Neurogenetics","412001-Pediatrics","412002-Peds-AIR","412003-Peds-Cardiology","412004-Child Medical Evaluation Prog","412006-Peds-Emergency Medicine","412007-Peds-Endocrinology","412008-Peds-Gastroenterology","412009-General Pediatrics","412010-Peds-Genetics and Metabolism","412011-Peds-Hematology/Oncology","412012-Peds-Wilmington","412013-Neonatal-Perinatal Medicine","412014-Peds-Pulmonology","412015-Pediatrics-Education","412016-Peds-Critical Care Medicine","412017-Pediatrics-Infectious Disease","412018-Peds-Hospital Medicine","412019-Peds-Children's Research Inst","412020-Pediatrics - Rheumatology","412099-Pediatrics - AHEC","412201-Psychiatry","412202-Psychiatry - General","412203-Psychiatry - Faculty Practice","412204-Psychiatry-Child Outpt Program","412205-Psychiatry-TEACCH","412206-Psychiatry-CIDD","412207-Psychiatry-Alcohol Center","412210-Psychiatry-Centr ofExcel-ADMIN","412211-Psychiatry-Centr of Excel-STEP","412212-Psychiatry-Centr ofExcel-OASIS","412213-Psychiatry-Centr of Excel-CRC","412214-Psychiatry - XDS","412215-Psychiatry-Centr of Excel-ACT","412216-Psychiatry-Centr of Excel-Dept","412217-Psychiatry-Centr of Excel-Hosp","412218-Psychiatry-NC Research Center","412220-Psychiatry-Wake OASIS","412221-Psychiatry-TailoredPlnCareMgmt","412230-Psychiatry-WakeBrook Admin","412231-Psychiatry-Wakebrook CAS","412232-Psychiatry-Wakebrook ATC","412233-Psychiatry-Wakebrook FBC","412234-Psychiatry-Wakebrook Inpatient","412235-Psychiatry-WakeBrook Primary C","412236-Psychiatry-Wakebrook STEP","412237-Psychiatry-WakeBrook ACT Team","412250-Psychiatry - Research","412299-Psychiatry - AHEC","412401-OBGYN - Administration","412402-OBGYN-Medical Education","412403-OBGYN-Division of Research","412430-OBGYN-GYN Oncology","412440-OBGYN-MFM","412450-OBGYN-REI","412460-OBGYN-Urogynecology","412461-OBGYN-Family Planning","412462-OBGYN-MIGS","412470-OBGYN-General OBGYN","412473-OBGYN-Midwifery","412480-OBGYN-Horizons","412490-OBGYN-Global Health","412499-Obstetrics Gynecology - AHEC","412601-Dermatology","412602-Dermatology - Medical Derm","412603-Dermatology-MOHS","412604-Dermatology-Dermpath","412610-Dermatology - Adult","412615-Dermatology- Pediatrics","412620-Dermatology-Research","412801-Radiology","412802-Radiology - Research","412803-Radiology - VascularIntervntnl","412804-Radiology - Breast Imaging","412805-Radiology - Chest","412806-Radiology-Interventional Neuro","412807-Radiology-Musculoskeletal Imag","412808-Radiology-Molecular Imaging","412809-Radiology - Neuroradiology","412810-Radiology - Pediatric Imaging","412811-Radiology - Residency Program","412813-Radiology - Abdominal Imaging","412814-Radiology- Emergency Radiology","413001-Radiation Oncology","413002-Radiation Oncology-Chapel Hill","413003-Radiation Oncology - Rex","413004-Radiation Oncology - Hospital","413005-Radiation Oncology-Hillsboroug","413006-Radiation Oncology - Caldwell","413201-Ophthalmology","413249-Ophthalmology - OphthCarCr","413401-Physical Medicine Rehab","413601-Anesthesiology","413602-Pain Anesthesia","413604-OB Anesthesia","413606-Critical Care Anesthesia","413608-General Anesthesia","413613-Pediatric Anesthesia","413621-Anesthesia-GI","413622-Anesth-Community Division","413624-Anesthesiology - Research","413626-Anesthesiology Education","413801-Pathology Lab Med","413802-Pathology Lab Med - Clinical","413803-Pathology Lab Med - Nephropath","413804-Pathology Lab Med - Research","413805-Pathology Lab Med - Recharge","413806-Pathology Lab Med - FOBRL","414001-Surgery","414002-Surgery - General Surgery","414005-Surgery - Burn Center","414010-Surgery - Cardiothoracic","414015-Surgery - Gastrointest Surgery","414020-Surgery - Surgical Oncology","414025-Surgery - Pediatric","414030-Surgery - Plastic Reconstruct","414035-Surgery - Transplant","414040-Surgery - Acute Care Trauma","414060-Surgery - Vascular","414080-Surgery - Research   Other","414099-Surgery - AHEC","414101-Urology","414105-Urology - Clinic","414201-Neurosurgery - Admin","414202-Neurosurgery","414205-Neurosurgery  - Offsite","414401-Otolaryngology (Ent)","414402-ENT - Voice and Swallowing","414403-ENT-Sinus","414404-ENT - Otology","414405-ENT - Pediatrics","414406-ENT - Head and Neck","414407-ENT - Plastics","414408-ENT-Skull Base","414409-ENT-General","414601-Orthopaedics","414605-Orthopaedics - Sports Medicine","414610-Orthopaedics - Joint Replacemt","414615-Orthopaedics - Spine","414620-Orthopaedics - Foot and Ankle","414625-Orthopaedics - Hand","414630-Orthopaedics-Orthopaedic Tumor","414635-Orthopaedics - Pediatrics","414640-Orthopaedics - Trauma","414645-Orthopaedics - Orthonow","414802-Heart Vascular-VIR","414805-Heart Vasc - Vascular Surg","415501-Orthotics and Prosthetics","416501-UNC HCS Home Office","420101-Med Ad Commitments","420102-Med Ad-Fin and Bus Operations","420103-Med Ad-Human Resources","420104-Med Ad-Deans Office","420105-Med Ad-Medical Alumni Affairs","420106-Med Ad-Planning Office","420107-Med Ad-Research","420108-Med Ad-Sponsored Programs","420109-Med Ad - Finance Service Ctr","420111-Med Ad-Faculty Affairs","420114-Med Ad-Diversity, Equity, Incl","420117-Med Admin-Cores","420127-Med Ad-Precision Medicine","420155-UNC Health Foundation - UNC","420201-Medical Student Education","420202-MedStuEd-Curriculum Affairs","420204-MedStuEd-Student Affairs","420206-Med Ad-OSEE","420207-Med Ad-Ofc Rural Initiatives","420210-MedStuEd-MD Teaching","420213-Med Ad-MD/PhD Program","420301-Graduate Education - SOM","420401-Information Technology-SOM","420701-Univ Cancer Res Fund - Theme 1","420703-Univ Cancer Res Fund - Theme 3","422001-Cell Biology and Physiology","422501-Microbiology and Immunology","423001-Biochemistry and Biophysics","423501-Genetics","423502-Genetics Curriculum","424001-Pharmacology","424601-Biomedical Engineering","424901-Social Medicine","425201-Womens Health Resrch Ctr","425601-SOM CRSO Clin Rsrch Supprt Ofc","425701-SOM Clinical Research Alliance","426001-Biomedical Res Imaging Ctr","426401-Marsico Lung Inst - CF Center","426601-Enviro Med Asthma and Lung Bio","426801-Lineberger Compr Cancer Center","426802-LCCC - CFAR","426803-LCCC - NANO","426804-LCCC - CTI","426805-LCCC - UCRF","426806-LCCC - Clinical Trials","427401-TEACCH","427420-TEACCH - Chapel Hill","427430-TEACCH - Charlotte","427460-TEACCH - Greenville","427480-TEACCH - CLLC","427481-TEACCH - Employment Services","427490-TEACCH - Raleigh","427601-UNC Kidney Center","427801-Globl Hlth and Infect Disease","428001-Gene Therapy Center","428201-Biological and Genome Sciences","428401-Aging and Health - Center","428601-Neuroscience Center","428801-Alcohol Studies Center","429001-Gastroint Biology and Dis Ctr","429201-Thurston Arthritis Res Center","429401-Carolina Institute for DD","429601-Toxicology Curriculum","429801-TraCS Institute"]
[null,"School of Public Health","School of Nursing","440100-Sch of Nursing","440110-School of Nursing-DO","440120-School of Nursing-OAA","440127-School of Nursing-OASS","440130-School of Nursing-RSC","440131-School of Nursing-BBL","440140-School of Nursing-OAS","440141-School of Nursing-Fac","440142-School of Nursing-CLL","440147-School of Nursing-IIT","440160-School of Nursing-HCE","440170-School of Nursing-FH","440180-School of Nursing-AGH","440199-AHEC Support-Nursing","449900-Nursing Foundation"]
[null,"School of Social Work","School of Pharmacy","450100-SOP-Office of the Dean","450101-SOP-Continuing Education","450102-SOP-CIPhER","450103-SOP-Pharmacy Simulation","450104-SOP-Catalyst Project","450150-SOP-Advancement","450151-SOP-Assessment","450152-SOP-Global Engagement","450153-SOP-ODI","450154-SOP-Research","450155-SOP-Pharmacoinformatics","450180-SOP-Marcom","450181-SOP-Facilities","450182-SOP-Finance","450183-SOP-Human Resources","450184-SOP-Information Technology","450185-SOP-Operations","450186-SOP-Information and Educ Tech","450200-SOP-Professional Education","450201-SOP-Student Affairs","450202-SOP-OSA-Grad Educ","450203-SOP-Experiential Prog","450300-SOP-Eshelman Inst for Innov","450301-SOP-Entrepreneurial Dev","450400-READDI","452100-SOP-CBMC","452101-SOP-CICBDD","452102-SOP-SGC Ctr for Chem Biology","452200-SOP-DPET","452201-SOP-CPIT","452202-SOP-Institute","452300-SOP-DPOP","452400-SOP-DPMP","452401-SOP-CNDD","452500-SOP-Practice Advancement","452501-SOP-Pharmaceutical Care Lab","452502-SOP-Medication Optimization","455100-Pharmacy-Asheville","455200-Pharmacy-Elizabeth City","459900-Pharmacy Foundation"]
[null,"UBC","School of Public Health","460101-SPH - Deans Ofc","460105-SPH - Finance","460110-SPH - Human Resources","460115-Strateg Analysis/Bus Intellige","460116-SPH - OSA - Diversity","460117-SPH - RIS - Programs","460120-SPH - Facilities","460121-SPH - Information Technology","460122-SPH - Other Undesignated","460125-SPH - Advancement","460130-SPH - Communications","460135-SPH - GGG Operations","460136-SPH - GGG Programs","460140-SPH - Student Affairs","460145-Research Innov Global Solns","460155-SPH - Acad Affairs","460160-SPH - CEPH Accreditation","460165-SPH - Faculty Mentoring","460170-Inclusive Excellence","460175-SPH - Commitments","460180-SPH - Student Aid","460500-Environ Health and Suscep","460501-Environ Health Suscep - Ops","460502-Environ Health Suscep - Prog","460901-SPH Shared Services - HR","461001-Health Policy and Management","462001-Biostatistics","462002-Biostatistics - CSCC","462003-Biostatistics - CSRL","463001-Envir Sciences and Engineering","463002-ESE - Water Institute","463003-ESE - Inst Envir Hlth Solution","463004-ESE Financial Risk in Envr Sys","463501-Epidemiology","464001-Health Behavior","464501-Maternal and Child Health","466001-Nutrition","468500-NCIPH and PHLP","468501-NCIPH and PHLP - Ops","468520-NC Institute for Public Health","468521-Active Living By Design","468522-Res Evaluatn and Tech Assist","468523-NCIPH Training","468524-Public Health Continued Ed","468525-SPH AHEC","468580-PH Leadership Program","468581-Health Care and Prevention","468582-Public Health Nursing","468599-AHEC Support-Public Health"]
[null,"UNC Global","School of Social Work","380099-AHEC-School of Social Work","380100-SW-School of Social Work","380200-SW-Deans Office","380300-SW-Business Office","380400-SW-CITU","380700-SW-PhD Program","380800-SW-MSW Program","380801-SW-MSW Program-Dist Ed","380805-SW-MSW Program-Field Ed","381000-SW-Cntr Aging Res and Edu Srvc","381100-SW-Behav Hlthcr Res Program","381200-SW-Family Support Program","381300-SW-Dev Disabilities Trng Inst","381400-SW-Jordan Inst for Families","381500-SW-Fam - Child Res Program","382000-SW-Research Projects","384900-Sch Social Work Fdn"]
[null,"University Communications","UBC","520100-Academic Commty Engagmnt-UBC","520500-Ackland Art Museum","520700-American Indian Center","521100-Carolina Center for Public Svc","523500-Partnerships in Aging Program","524500-Morehead Planetarium","525200-Carolina Higher Ed Opp Pgms","525202-CHEOP Trio Programs Offices","526000-Carolina Latinx Center","527500-Wm Ida Friday Ctr-Cont Educ","528000-Sonja H Stone Center","529000-World View"]
[null,"University Development","UNC Global","506500-VP Global Affairs","506501-Global Partnership Programs","506502-UNC Global - Gl Rsrch Inst","506503-UNC Global - IS   SS","506508-UNC Global - Car Kib"]
[null,"University Libraries","University Communications","258000-University Communications"]
[null,"Vice Chancellor for Student Affairs","University Development","250100-University Development Office","250101-VC Univ Dev - Peripheral Ops","250102-VC UDO University Events","250105-VC UDO Flow Through"]
[null,"Vice Chancellor for Research","University Libraries","550501-University Library","550503-Univ Lib-Art Library","550531-Univ Lib-NCC","550547-Univ Lib-SFC","550551-Univ Lib-Spec Collections","552000-Law Library","552500-Health Sciences Library","552599-AHEC-Hlth Sciences Library"]
[null,null,"Vice Chancellor for Student Affairs","640001-Student Affairs Division","640101-Student Affairs Ofc of the VC","640102-SA Finance and HR","640201-Student Affairs Development","640501-Student Aff Dean of Students","640601-Student Aff Student Conduct","640701-Student Aff Student Wellness","640801-SA Violence Prev and Advo Svcs","641001-SA Fraternity Sorority Life","641301-SA Off-Campus Student Life","641501-SA Accessibility Resources Ser","641601-Student Affairs LGBTQ Center","641901-Student Affairs Info Tech","643001-SA University Career Services","645001-Student Affairs Carolina Union","645101-SA Carolina Union Evt Mgt Adm","645201-SA Carolina Union Mrtg Des Adm","645301-SA Student Activities Fund Off","645302-SA Carolina Union Fee Mgmt","645303-SA Carolina Union Stu Enrich","645401-Student Affairs Campus Y","648001-SA New Student Family Prgrms","648101-SA NSFP Parent Fund","648201-SA NSFP Parents Counsel","650001-SA Campus Health Services","650002-SA Campus Health Facilities","650003-SA Campus Health Pharmacy","650004-SA Campus Health Sports Med/PT","650005-SA Campus Health Envir of Care","650006-SA Campus Health Athletic Hlth","650007-SA Campus Health Technology","650008-SA Campus Health Wellness","650009-SA Campus Health Payer Mgmt","650010-SA Counseling Psych Svc (CAPS)","650011-SA Campus Health Emergency Ops","650012-SA Campus Health Clinic","650013-SA Campus Health Student Hlth","650014-SA Campus Health Lab","650015-SA Campus Health X-Ray","650016-SA CHS Student Stores Pharmacy","653001-SA Carolina Housing","653002-SA Carolina Housing Conference","653003-SA Carolina Housing ResNET","653101-SA Carolina Housing Info Svcs","653102-SA Carolina Housing Family Hsg","653201-SA Carolina Housing Facilities","653301-SA Carolina Housing Res Educ","653403-SA Carolina Housing Ram Villag","653404-SA Carolina Housing Manning E","653405-SA Carolina Housing Manning W","653502-SA Carolina Housing Cobb","653503-SA Carolina Housing Connor","653504-SA Carolina Housing Kenan","653505-SA Carolina Housing Lower Quad","653506-SA Carolina Housing Upper Quad","653602-SA Carolina Housing Carmichael","653603-SA Carolina Housing Morrison","653604-SA Carolina Housing Parker","653702-SA Carolina Housing Craige","653703-SA Carolina Housing Ehringhaus","653704-SA Carolina Housing Hinton Jms","653801-SA Carolina Housing Granville"]
[null,null,"Vice Chancellor for Research","620100-VC for Res","621100-Office of Sponsored Programs","621200-Clinical Research Compliance","621250-Clinical Res Support and Oper","621300-Ofc of Human Research Ethics","621400-Office of Animal Care and Use","621500-Comparative Medicine","621600-Research Information Systems","621700-Postdoc Affairs","621800-Office of Industry Contracting","624200-Office of Research Development","624400-Ofc of Research Communications","624500-Institute Convergent Science","631100-Carolina Population Center","631200-FPG Child Development Inst","631300-H W Odum Inst Res Social Sci","631350-Research Data Management Core","631400-Ctr for Developmental Science","633100-Sheps Ctr for Hlth Serv Res","633200-Ctr Health Prom and Dis Prev","633300-Nutrition Research Institute","633500-Injury Prevention Research Ctr","633600-Highway Safety Research","635200-UNC Inst for the Environment","635300-Center for Galapagos Studies","637100-Renaissance Computing Inst","637200-Resilience Center","637300-DICE Center","639900-Kenan Ctr Util Carbon Dioxide"]
[]
["Primary"]
[null,"Select One (drop down)","Secondary","Select One (drop down) or Type in multiple titles"]
[null,"Academic Advising Professional",null,"Academic Advising Professional"]
[null,"Academic Advisor",null,"Academic Advisor"]
[null,"Academic Coordinator",null,"Academic Coordinator"]
[null,"Academic Counselor",null,"Academic Counselor"]
[null,"Academic Director",null,"Academic Director"]
[null,"Accountant 1",null,"Accountant 1"]
[null,"Accountant 2",null,"Accountant 2"]
[null,"Accountant 3",null,"Accountant 3"]
[null,"Accounting Manager 1",null,"Accounting Manager 1"]
[null,"Accounting Manager 2",null,"Accounting Manager 2"]
[null,"Accounting Manager 3",null,"Accounting Manager 3"]
[null,"Adjunct Assistant Professor",null,"Adjunct Assistant Professor"]
[null,"Adjunct Associate Professor",null,"Adjunct Associate Professor"]
[null,"Adjunct Fellow",null,"Adjunct Fellow"]
[null,"Adjunct Instructor",null,"Adjunct Instructor"]
[null,"Adjunct Professor",null,"Adjunct Professor"]
[null,"Adjunct Scholar",null,"Adjunct Scholar"]
[null,"Administrative Coordinator",null,"Administrative Coordinator"]
[null,"Administrative Director",null,"Administrative Director"]
[null,"Application Evaluator",null,"Application Evaluator"]
[null,"Architect",null,"Architect"]
[null,"Archive/Museum/Gallery Prfsnl",null,"Archive/Museum/Gallery Prfsnl"]
[null,"Archives & Records Prfssnl",null,"Archives & Records Prfssnl"]
[null,"Area Chair",null,"Area Chair"]
[null,"Artist in Residence",null,"Artist in Residence"]
[null,"Arts Production Specialist",null,"Arts Production Specialist"]
[null,"Assistant Coach",null,"Assistant Coach"]
[null,"Assistant Dean",null,"Assistant Dean"]
[null,"Assistant Department Chair",null,"Assistant Department Chair"]
[null,"Assistant Director",null,"Assistant Director"]
[null,"Assistant Librarian",null,"Assistant Librarian"]
[null,"Assistant Professor",null,"Assistant Professor"]
[null,"Assistant Provost",null,"Assistant Provost"]
[null,"Assistant to Chancellor",null,"Assistant to Chancellor"]
[null,"Assistant to Dean",null,"Assistant to Dean"]
[null,"Assistant to Director",null,"Assistant to Director"]
[null,"Assistant Vice Chancellor",null,"Assistant Vice Chancellor"]
[null,"Associate Dean",null,"Associate Dean"]
[null,"Associate Department Chair",null,"Associate Department Chair"]
[null,"Associate Director",null,"Associate Director"]
[null,"Associate Librarian",null,"Associate Librarian"]
[null,"Associate Professor",null,"Associate Professor"]
[null,"Associate Provost",null,"Associate Provost"]
[null,"Associate Registrar",null,"Associate Registrar"]
[null,"Associate Vice Chancellor",null,"Associate Vice Chancellor"]
[null,"Asst.  Police Supervisor II",null,"Asst.  Police Supervisor II"]
[null,"Asst. Police Supervisor",null,"Asst. Police Supervisor"]
[null,"Asst. Police Supervisor I",null,"Asst. Police Supervisor I"]
[null,"Asst. Police Supervisor III",null,"Asst. Police Supervisor III"]
[null,"Athletic Director",null,"Athletic Director"]
[null,"Athletic Trainer",null,"Athletic Trainer"]
[null,"Attorney",null,"Attorney"]
[null,"Audit Manager 1",null,"Audit Manager 1"]
[null,"Audit Manager 2",null,"Audit Manager 2"]
[null,"Audit Manager 3",null,"Audit Manager 3"]
[null,"Auditor 1",null,"Auditor 1"]
[null,"Auditor 2",null,"Auditor 2"]
[null,"Auditor 3",null,"Auditor 3"]
[null,"Behavioral Health Professional",null,"Behavioral Health Professional"]
[null,"Bioinformatician",null,"Bioinformatician"]
[null,"Biostatistician",null,"Biostatistician"]
[null,"Bldg & Env Services Manager",null,"Bldg & Env Services Manager"]
[null,"Brdcst & Emrg Media Engr Mngr",null,"Brdcst & Emrg Media Engr Mngr"]
[null,"Brdcst & Emrg Media EngrSpclst",null,"Brdcst & Emrg Media EngrSpclst"]
[null,"Brdcst & Emrg Media Manager",null,"Brdcst & Emrg Media Manager"]
[null,"Brdcst & Emrg Media Specialist",null,"Brdcst & Emrg Media Specialist"]
[null,"Broadcast Director",null,"Broadcast Director"]
[null,"Broadcast Host",null,"Broadcast Host"]
[null,"Broadcast Producer",null,"Broadcast Producer"]
[null,"Business Manager 1",null,"Business Manager 1"]
[null,"Business Manager 2",null,"Business Manager 2"]
[null,"Business Manager 3",null,"Business Manager 3"]
[null,"Business Officer 1",null,"Business Officer 1"]
[null,"Business Officer 2",null,"Business Officer 2"]
[null,"Business Officer 3",null,"Business Officer 3"]
[null,"Business Operations Prfssional",null,"Business Operations Prfssional"]
[null,"Business Systems Analyst",null,"Business Systems Analyst"]
[null,"Business Systems Manager",null,"Business Systems Manager"]
[null,"Career Services Professional",null,"Career Services Professional"]
[null,"Chancellor",null,"Chancellor"]
[null,"Chief Library Officer",null,"Chief Library Officer"]
[null,"Clinical Assistant Professor",null,"Clinical Assistant Professor"]
[null,"Clinical Associate Professor",null,"Clinical Associate Professor"]
[null,"Clinical Dept Administrator",null,"Clinical Dept Administrator"]
[null,"Clinical Fellow",null,"Clinical Fellow"]
[null,"Clinical Instructor",null,"Clinical Instructor"]
[null,"Clinical Professor",null,"Clinical Professor"]
[null,"Coach",null,"Coach"]
[null,"Coach Emeritus",null,"Coach Emeritus"]
[null,"College Counselor",null,"College Counselor"]
[null,"Communication/Marketing Prfsnl",null,"Communication/Marketing Prfsnl"]
[null,"Continuing Education Specialst",null,"Continuing Education Specialst"]
[null,"Curatorial Director",null,"Curatorial Director"]
[null,"Curatorial Specialist",null,"Curatorial Specialist"]
[null,"Dean",null,"Dean"]
[null,"Dentist",null,"Dentist"]
[null,"Department Chair",null,"Department Chair"]
[null,"Deputy Chief Develpmnt Officer",null,"Deputy Chief Develpmnt Officer"]
[null,"Deputy Director",null,"Deputy Director"]
[null,"Development Director",null,"Development Director"]
[null,"Development/Fundraising Prfsnl",null,"Development/Fundraising Prfsnl"]
[null,"Director",null,"Director"]
[null,"Distance Learning Coordinator",null,"Distance Learning Coordinator"]
[null,"Distance Learning Specialist",null,"Distance Learning Specialist"]
[null,"Distinguished Adj Fellow",null,"Distinguished Adj Fellow"]
[null,"Distinguished Adj Professor",null,"Distinguished Adj Professor"]
[null,"Distinguished Adj Scholar",null,"Distinguished Adj Scholar"]
[null,"Distinguished Clinical Fellow",null,"Distinguished Term Assoc Prof"]
[null,"Distinguished Clinical Prof",null,"Distinguished Term Clin Prof"]
[null,"Distinguished Clinical Scholar",null,"Distinguished Term Fellow"]
[null,"Distinguished Fellow",null,"Distinguished Term Lecturer"]
[null,"Distinguished Professor",null,"Distinguished Term Professor"]
[null,"Distinguished Research Fellow",null,"Distinguished Trm Clin Fellow"]
[null,"Distinguished Research Prof",null,"Distinguished Trm Clin Scholar"]
[null,"Distinguished Research Scholar",null,"Distinguished Trm Prof of Prac"]
[null,"Distinguished Scholar",null,"Distinguished Trm Rsrch Fellow"]
[null,"Division Chief",null,"Distinguished Trm Rsrch Prof"]
[null,"Educational Consultant",null,"Distinguished TrmRsrch Scholar"]
[null,"EHS Manager/Consultant",null,"Division Chief"]
[null,"EHS Professional",null,"Educational Consultant"]
[null,"Electronics Specialist",null,"EHS Manager/Consultant"]
[null,"Electronics Supervisor",null,"EHS Professional"]
[null,"Eminent Professor",null,"Electronics Specialist"]
[null,"Energy Utilities Specialist",null,"Electronics Supervisor"]
[null,"Energy Utilities Supervisor",null,"Eminent Professor"]
[null,"Engineer",null,"Energy Utilities Specialist"]
[null,"Engineer",null,"Energy Utilities Supervisor"]
[null,"Engineering Director",null,"Engineer"]
[null,"Engr/Architectural Manager",null,"Engineering Director"]
[null,"Engr/Architectural Supervisor",null,"Engr/Architectural Manager"]
[null,"Environmental Safety Prfsnl",null,"Engr/Architectural Supervisor"]
[null,"Environmental Specialist",null,"Environmental Safety Prfsnl"]
[null,"EqOpp/Affirm Act/Diversity Prf",null,"Environmental Specialist"]
[null,"Event Professional",null,"EqOpp/Affirm Act/Diversity Prf"]
[null,"Facilities Superintendent",null,"Event Professional"]
[null,"Facility Maint Supervisor",null,"Facilities Superintendent"]
[null,"Facility Planner",null,"Facility Maint Supervisor"]
[null,"Faculty Coordinator",null,"Facility Planner"]
[null,"Fellow",null,"Faculty Coordinator"]
[null,"Finance Professional",null,"Fellow"]
[null,"Finance/Budget Analyst 1",null,"Finance Professional"]
[null,"Finance/Budget Analyst 2",null,"Finance/Budget Analyst 1"]
[null,"Finance/Budget Analyst 3",null,"Finance/Budget Analyst 2"]
[null,"Finance/Budget Manager 1",null,"Finance/Budget Analyst 3"]
[null,"Finance/Budget Manager 2",null,"Finance/Budget Manager 1"]
[null,"Finance/Budget Manager 3",null,"Finance/Budget Manager 2"]
[null,"Financial Aid Professional",null,"Finance/Budget Manager 3"]
[null,"General Librarian",null,"Financial Aid Professional"]
[null,"Geologist/Hydrogeologist",null,"General Librarian"]
[null,"Golf Professional",null,"Geologist/Hydrogeologist"]
[null,"Homeschool Teacher",null,"Golf Professional"]
[null,"Human Resources Consultant",null,"Homeschool Teacher"]
[null,"Human Resources Manager",null,"Human Resources Consultant"]
[null,"Human Resources Professional",null,"Human Resources Manager"]
[null,"Human Resources Specialist",null,"Human Resources Professional"]
[null,"Human Services Manager",null,"Human Resources Specialist"]
[null,"Human Services Practitioner",null,"Human Services Manager"]
[null,"Human Services Prog Consultant",null,"Human Services Practitioner"]
[null,"Human Services Supervisor",null,"Human Services Prog Consultant"]
[null,"Information Tech Professional",null,"Human Services Supervisor"]
[null,"Inst Assessment Specialist",null,"Information Tech Professional"]
[null,"Inst Policy/Compliance Prfsnl",null,"Inst Assessment Specialist"]
[null,"Instructional Design Specialst",null,"Inst Policy/Compliance Prfsnl"]
[null,"Instructor",null,"Instructional Design Specialst"]
[null,"Instructor - Special Provision",null,"Instructor"]
[null,"Interior Designer",null,"Interior Designer"]
[null,"IT Analyst/Programmer - 1",null,"IT Analyst/Programmer - 1"]
[null,"IT Analyst/Programmer - 2",null,"IT Analyst/Programmer - 2"]
[null,"IT Analyst/Programmer - 3",null,"IT Analyst/Programmer - 3"]
[null,"IT Analyst/Programmer - 4",null,"IT Analyst/Programmer - 4"]
[null,"IT Analyst/Programmer - 5",null,"IT Analyst/Programmer - 5"]
[null,"IT Architect/Engineer - 1",null,"IT Architect/Engineer - 1"]
[null,"IT Architect/Engineer - 2",null,"IT Architect/Engineer - 2"]
[null,"IT Architect/Engineer - 3",null,"IT Architect/Engineer - 3"]
[null,"IT Architect/Engineer - 4",null,"IT Architect/Engineer - 4"]
[null,"IT Architect/Engineer - 5",null,"IT Architect/Engineer - 5"]
[null,"IT Auditor - 1",null,"IT Auditor - 1"]
[null,"IT Auditor - 2",null,"IT Auditor - 2"]
[null,"IT Auditor - 3",null,"IT Auditor - 3"]
[null,"IT Auditor - 4",null,"IT Auditor - 4"]
[null,"IT Auditor - 5",null,"IT Auditor - 5"]
[null,"IT Business Systems Analyst-1",null,"IT Business Systems Analyst-1"]
[null,"IT Business Systems Analyst-2",null,"IT Business Systems Analyst-2"]
[null,"IT Business Systems Analyst-3",null,"IT Business Systems Analyst-3"]
[null,"IT Business Systems Analyst-4",null,"IT Business Systems Analyst-4"]
[null,"IT Business Systems Analyst-5",null,"IT Business Systems Analyst-5"]
[null,"IT Busn Intel & Data Analyst-1",null,"IT Busn Intel & Data Analyst-1"]
[null,"IT Busn Intel & Data Analyst-2",null,"IT Busn Intel & Data Analyst-2"]
[null,"IT Busn Intel & Data Analyst-3",null,"IT Busn Intel & Data Analyst-3"]
[null,"IT Busn Intel & Data Analyst-4",null,"IT Busn Intel & Data Analyst-4"]
[null,"IT Busn Intel & Data Analyst-5",null,"IT Busn Intel & Data Analyst-5"]
[null,"IT Client Support Manager - 1",null,"IT Client Support Manager - 1"]
[null,"IT Client Support Manager - 2",null,"IT Client Support Manager - 2"]
[null,"IT Client Support Manager - 3",null,"IT Client Support Manager - 3"]
[null,"IT Client Support Manager - 4",null,"IT Client Support Manager - 4"]
[null,"IT Client Support Manager - 5",null,"IT Client Support Manager - 5"]
[null,"IT Database Administrator - 1",null,"IT Database Administrator - 1"]
[null,"IT Database Administrator - 2",null,"IT Database Administrator - 2"]
[null,"IT Database Administrator - 3",null,"IT Database Administrator - 3"]
[null,"IT Database Administrator - 4",null,"IT Database Administrator - 4"]
[null,"IT Database Administrator - 5",null,"IT Database Administrator - 5"]
[null,"IT Instruct/Classrm Sup Prof-1",null,"IT Instruct/Classrm Sup Prof-1"]
[null,"IT Instruct/Classrm Sup Prof-2",null,"IT Instruct/Classrm Sup Prof-2"]
[null,"IT Instruct/Classrm Sup Prof-3",null,"IT Instruct/Classrm Sup Prof-3"]
[null,"IT Instruct/Classrm Sup Prof-4",null,"IT Instruct/Classrm Sup Prof-4"]
[null,"IT Instruct/Classrm Sup Prof-5",null,"IT Instruct/Classrm Sup Prof-5"]
[null,"IT Manager - 1",null,"IT Manager - 1"]
[null,"IT Manager - 2",null,"IT Manager - 2"]
[null,"IT Manager - 3",null,"IT Manager - 3"]
[null,"IT Manager - 4",null,"IT Manager - 4"]
[null,"IT Manager - 5",null,"IT Manager - 5"]
[null,"IT Network Administrator - 1",null,"IT Network Administrator - 1"]
[null,"IT Network Administrator - 2",null,"IT Network Administrator - 2"]
[null,"IT Network Administrator - 3",null,"IT Network Administrator - 3"]
[null,"IT Network Administrator - 4",null,"IT Network Administrator - 4"]
[null,"IT Network Administrator - 5",null,"IT Network Administrator - 5"]
[null,"IT Project Manager - 1",null,"IT Project Manager - 1"]
[null,"IT Project Manager - 2",null,"IT Project Manager - 2"]
[null,"IT Project Manager - 3",null,"IT Project Manager - 3"]
[null,"IT Project Manager - 4",null,"IT Project Manager - 4"]
[null,"IT Project Manager - 5",null,"IT Project Manager - 5"]
[null,"IT Security Professional - 1",null,"IT Security Professional - 1"]
[null,"IT Security Professional - 2",null,"IT Security Professional - 2"]
[null,"IT Security Professional - 3",null,"IT Security Professional - 3"]
[null,"IT Security Professional - 4",null,"IT Security Professional - 4"]
[null,"IT Security Professional - 5",null,"IT Security Professional - 5"]
[null,"IT System Administrator - 1",null,"IT System Administrator - 1"]
[null,"IT System Administrator - 2",null,"IT System Administrator - 2"]
[null,"IT System Administrator - 3",null,"IT System Administrator - 3"]
[null,"IT System Administrator - 4",null,"IT System Administrator - 4"]
[null,"IT System Administrator - 5",null,"IT System Administrator - 5"]
[null,"IT Web Designer/Developer - 1",null,"IT Web Designer/Developer - 1"]
[null,"IT Web Designer/Developer - 2",null,"IT Web Designer/Developer - 2"]
[null,"IT Web Designer/Developer - 3",null,"IT Web Designer/Developer - 3"]
[null,"IT Web Designer/Developer - 4",null,"IT Web Designer/Developer - 4"]
[null,"IT Web Designer/Developer - 5",null,"IT Web Designer/Developer - 5"]
[null,"Laboratory Professional",null,"Laboratory Professional"]
[null,"Landscape Architect",null,"Landscape Architect"]
[null,"Lecturer",null,"Lecturer"]
[null,"Legal Specialist",null,"Legal Specialist"]
[null,"Librarian",null,"Librarian"]
[null,"Librarian / Curator",null,"Librarian / Curator"]
[null,"Master Police Officer",null,"Master Police Officer"]
[null,"Master Police Officer I",null,"Master Police Officer I"]
[null,"Master Police Officer II",null,"Master Police Officer II"]
[null,"Master Police Officer III",null,"Master Police Officer III"]
[null,"Medical & Hlth Prog Consultant",null,"Medical & Hlth Prog Consultant"]
[null,"Medical Diagnostic Specialist",null,"Medical Diagnostic Specialist"]
[null,"Medical Lab Tech/Specialist",null,"Medical Lab Tech/Specialist"]
[null,"Medical Laboratory Supervisor",null,"Medical Laboratory Supervisor"]
[null,"Medical Record Manager",null,"Medical Record Manager"]
[null,"Medical Research Professional",null,"Medical Research Professional"]
[null,"Medical Therapeutic Specialist",null,"Medical Therapeutic Specialist"]
[null,"Nurse Director",null,"Nurse Director"]
[null,"Nurse Practitioner",null,"Nurse Practitioner"]
[null,"Nursing Professional",null,"Nursing Professional"]
[null,"Nutrition Specialist",null,"Nutrition Specialist"]
[null,"Performing Arts Professional",null,"Performing Arts Professional"]
[null,"Pharmacist",null,"Pharmacist"]
[null,"Physician",null,"Physician"]
[null,"Physician Assistant",null,"Physician Assistant"]
[null,"Planner",null,"Planner"]
[null,"Police Commander",null,"Police Commander"]
[null,"Police Executive I",null,"Police Executive I"]
[null,"Police Executive II",null,"Police Executive II"]
[null,"Police Executive III",null,"Police Executive III"]
[null,"Police Officer",null,"Police Officer"]
[null,"Police Officer I",null,"Police Officer I"]
[null,"Police Officer II",null,"Police Officer II"]
[null,"Police Officer III",null,"Police Officer III"]
[null,"Police Officer Trainee",null,"Police Officer Trainee"]
[null,"Police Supervisor",null,"Police Supervisor"]
[null,"Police Supervisor I",null,"Police Supervisor I"]
[null,"Police Supervisor II",null,"Police Supervisor II"]
[null,"Police Supervisor III",null,"Police Supervisor III"]
[null,"Post-Doc Research Associate",null,"Post-Doc Research Associate"]
[null,"Post-Doc Trainee",null,"Post-Doc Trainee"]
[null,"Print/Docu Services Supervisor",null,"Print/Docu Services Supervisor"]
[null,"Professor",null,"Professor"]
[null,"Professor of the Practice",null,"Professor of the Practice"]
[null,"Program Coordinator",null,"Program Coordinator"]
[null,"Project Officer",null,"Project Officer"]
[null,"Provost",null,"Provost"]
[null,"Psychoeducational Trainer",null,"Psychoeducational Trainer"]
[null,"Psychologist",null,"Psychologist"]
[null,"Psychology Associate",null,"Psychology Associate"]
[null,"Public Comm Specialist",null,"Public Comm Specialist"]
[null,"Public Service Professional",null,"Public Service Professional"]
[null,"Purchasing Manager",null,"Purchasing Manager"]
[null,"Purchasing Specialist",null,"Purchasing Specialist"]
[null,"Research Assistant",null,"Research Assistant"]
[null,"Research Assistant Professor",null,"Research Assistant Professor"]
[null,"Research Associate",null,"Research Associate"]
[null,"Research Associate Professor",null,"Research Associate Professor"]
[null,"Research Coordinator",null,"Research Coordinator"]
[null,"Research Dept Administrator",null,"Research Dept Administrator"]
[null,"Research Facility Manager",null,"Research Facility Manager"]
[null,"Research Instructor",null,"Research Instructor"]
[null,"Research Investigator",null,"Research Investigator"]
[null,"Research Operations Manager",null,"Research Operations Manager"]
[null,"Research Professional",null,"Research Professional"]
[null,"Research Professor",null,"Research Professor"]
[null,"Research Program Director",null,"Research Program Director"]
[null,"Research Program Manager",null,"Research Program Manager"]
[null,"Research Project Director",null,"Research Project Director"]
[null,"Research Project Manager",null,"Research Project Manager"]
[null,"Research Scientist",null,"Research Scientist"]
[null,"Research Software Developer",null,"Research Software Developer"]
[null,"Research Specialist",null,"Research Specialist"]
[null,"Resident",null,"Resident"]
[null,"Scholar",null,"Secretary of the University"]
[null,"Secretary of the University",null,"Senior Academic Advisor"]
[null,"Senior Academic Advisor",null,"Senior Associate Dean"]
[null,"Senior Associate Dean",null,"Senior Lecturer"]
[null,"Senior Lecturer",null,"Senior Police Supervisor"]
[null,"Senior Police Supervisor",null,"Senior Police Supervisor I"]
[null,"Senior Police Supervisor I",null,"Senior Police Supervisor II"]
[null,"Senior Police Supervisor II",null,"Senior Police Supervisor III"]
[null,"Senior Police Supervisor III",null,"Senior Research Scientist"]
[null,"Senior Research Scientist",null,"Soc/Clin Research Manager"]
[null,"Soc/Clin Research Manager",null,"Soc/Clin Research Specialist"]
[null,"Soc/Clin Research Specialist",null,"Social Services Professional"]
[null,"Social Services Professional",null,"Social Work Practitioner"]
[null,"Social Work Practitioner",null,"Social Work Supervisor"]
[null,"Social Work Supervisor",null,"Special Assistant to Provost"]
[null,"Special Assistant to Provost",null,"Specialty Trades Technician"]
[null,"Specialty Trades Technician",null,"Sr Associate Vice Chancellor"]
[null,"Sr Associate Vice Chancellor",null,"Statistician Investigator"]
[null,"Statistician Investigator",null,"Stu Housing Community Director"]
[null,"Stu Housing Community Director",null,"Student Activities Coordinator"]
[null,"Student Activities Coordinator",null,"Student Health Professional"]
[null,"Student Health Professional",null,"Student Housing Professional"]
[null,"Student Housing Professional",null,"Student Services Professional"]
[null,"Student Services Professional",null,"Student Services Specialist"]
[null,"Student Services Specialist",null,"Summer School Faculty"]
[null,"Summer School Faculty",null,"Support Services Supervisor"]
[null,"Support Services Supervisor",null,"Teaching Assistant Professor"]
[null,"Teaching Assistant Professor",null,"Teaching Associate Professor"]
[null,"Teaching Associate Professor",null,"Teaching Professor"]
[null,"Teaching Professor",null,"Tech Transfer Professional"]
[null,"Tech Transfer Professional",null,"Term Fellow"]
[null,"Training Specialist",null,"Term Scholar"]
[null,"Transportation Supervisor",null,"Training Specialist"]
[null,"Turf/Agricultural Prog Manager",null,"Transportation Supervisor"]
[null,"Tutor/Mentor/Scholar/Fellow",null,"Turf/Agricultural Prog Manager"]
[null,"University Library Specialist",null,"Tutor/Mentor/Scholar/Fellow"]
[null,"University Program Manager",null,"University Library Specialist"]
[null,"University Program Specialist",null,"University Program Manager"]
[null,"Utilities Plant Op Supervisor",null,"University Program Specialist"]
[null,"Vice Chancellor",null,"Unpaid Dental Grad Assistant"]
[null,"Vice Dean",null,"Utilities Plant Op Supervisor"]
[null,"Vice Department Chair",null,"Vice Chancellor"]
[null,"Vice Provost",null,"Vice Dean"]
[null,"Visual Arts Specialist",null,"Vice Department Chair"]
[null,"Writer in Residence",null,"Vice Provost"]
[null,"Accountant",null,"Visual Arts Specialist"]
[null,"Accounting Director",null,"Writer in Residence"]
[null,"Accounting Manager"]
[null,"Accounting Technician"]
[null,"Administrative Support Associate"]
[null,"Administrative Support Specialist"]
[null,"Administrative Support Supervisor"]
[null,"Executive Assistant"]
[null,"Audit Manager"]
[null,"Auditor"]
[null,"Budget Analyst"]
[null,"Budget Manager"]
[null,"Business Manager"]
[null,"Business Officer"]
[null,"Business Services Coordinator"]
[null,"Financial Analyst"]
[null,"Financial Manager"]
[null,"Human Resources Consultant"]
[null,"Human Resources Manager"]
[null,"Human Resources Specialist"]
[null,"Legal Specialist"]
[null,"Paralegal"]
[null,"Paralegal Administrator"]
[null,"Planner"]
[null,"University Program Associate"]
[null,"University Program Manager"]
[null,"University Program Specialist"]
[null,"Social/Clinical Research Assistant"]
[null,"Social/Clinical Research Manager"]
[null,"Social/Clinical Research Specialist"]
[null,"Support Services Associate"]
[null,"Support Services Supervisor"]
[null,"Translator"]
[null,"Business Systems Analyst"]
[null,"Business Systems Manager"]
[null,"Purchasing Manager"]
[null,"Purchasing Specialist"]
[null,"Architect"]
[null,"Landscape Architect"]
[null,"Engineer (Metropolitan Rates)"]
[null,"Engineering Assistant"]
[null,"Engineering Director"]
[null,"Engineering/Architectural Manager"]
[null,"Engineering/Architectural Supervisor (Metropolitan Rates)"]
[null,"Engineering/Architectural Technician"]
[null,"Facility Planner"]
[null,"Geologist/Hydrogeologist"]
[null,"Human Services Program Consultant"]
[null,"Human Services Program Support Tech"]
[null,"Human Services Manager"]
[null,"Human Services Practitioner"]
[null,"Human Services Supervisor"]
[null,"Psychology Associate"]
[null,"Social Work Practitioner"]
[null,"Social Work Supervisor"]
[null,"Educational Consultant"]
[null,"Training Specialist"]
[null,"Archives and Records Professional"]
[null,"University Librarian"]
[null,"University Library Specialist"]
[null,"University Library Technician"]
[null,"Broadcast & Emerging Media Eng Mgr"]
[null,"Broadcast & Emerging Media Eng Spec"]
[null,"Broadcast & Emerging Media Eng Tech"]
[null,"Broadcast & Emerging Media Manager"]
[null,"Broadcast & Emerging Media Specialist"]
[null,"Broadcast & Emerging Media Technician"]
[null,"Multi-Media Technician"]
[null,"Curatorial Director"]
[null,"Curatorial Specialist"]
[null,"Curatorial Technician"]
[null,"Public Communication Specialist"]
[null,"Visual Arts Specialist"]
[null,"Student Services Specialist"]
[null,"Arts Production Specialist"]
[null,"Interior Designer"]
[null,"Performing Artist"]
[null,"Early Childhood Development Practitioner"]
[null,"Business And Technology Applic Analyst"]
[null,"Business And Technology Applic Specl"]
[null,"Business And Technology Applic Tech"]
[null,"IT Project Analyst / Manager"]
[null,"Information Technology Manager"]
[null,"IT Project Program Manager"]
[null,"Information Technology Director"]
[null,"IT Security Specialist"]
[null,"Networking Analyst"]
[null,"Networking Specialist"]
[null,"Networking Technician"]
[null,"IT Operations Analyst"]
[null,"IT Operations Technician"]
[null,"Systems Programmer / Analyst"]
[null,"Systems Programmer / Specialist"]
[null,"Technology Support Analyst"]
[null,"Technology Support Specialist"]
[null,"Technology Support Technician"]
[null,"Building Environmental Services Manager"]
[null,"Building Environmental Services Supv"]
[null,"Building Environmental Services Tech"]
[null,"Food Services Manager"]
[null,"Food Services Supervisor"]
[null,"Food Services Technician"]
[null,"Public Safety Manager (Metropolitan Rates)"]
[null,"Public Safety Officer (Metropolitan Rates)"]
[null,"Public Safety Supervisor (Metropolitan Rates)"]
[null,"Property Security Officer"]
[null,"Property Security Supervisor"]
[null,"Public Safety Telecommunicator (Metropolitan Rates)"]
[null,"Public Safety Telecommunicator Supervisor (Metropolitan Rates)\n"]
[null,"Environmental Health And Safety Prof"]
[null,"Environmental Health And Safety Tech"]
[null,"Environmental Hlth & Safety Mgr/Consult"]
[null,"Dental Assistant"]
[null,"Dental Hygienist"]
[null,"Dental Technician"]
[null,"Dentist"]
[null,"Nutrition Assistant"]
[null,"Nutrition Specialist"]
[null,"Medical Diagnostic Specialist"]
[null,"Medical Diagnostic Technician"]
[null,"Medical Lab Technologist/Specialist"]
[null,"Medical Laboratory Supervisor"]
[null,"Medical Laboratory Technician"]
[null,"Medical Record Manager"]
[null,"Medical Support Technician"]
[null,"Medical Therapeutic Specialist"]
[null,"Medical Therapy Technician/Assistant"]
[null,"Licensed Practical Nurse"]
[null,"Medical/Nursing Assistant"]
[null,"Nurse Consultant"]
[null,"Nurse Director"]
[null,"Nurse Practitioner"]
[null,"Nurse Supervisor"]
[null,"Professional Nurse"]
[null,"Pharmacist"]
[null,"Pharmacy Technician"]
[null,"Physician Assistant"]
[null,"Medical and Health Program Consultant"]
[null,"Agricultural/Horticultural Specialist"]
[null,"Turf/Agricultural Program Manager"]
[null,"Environmental Specialist"]
[null,"Research Operations Manager"]
[null,"Research Specialist"]
[null,"Research Technician"]
[null,"Research Vessel Captain"]
[null,"Laboratory Assistant"]
[null,"Aircraft Maintenance Specialist"]
[null,"Aircraft Operations Supervisor"]
[null,"Aircraft Pilot"]
[null,"Electronics Specialist"]
[null,"Electronics Supervisor"]
[null,"Facilities Superintendent"]
[null,"Facility Maintenance Supervisor"]
[null,"Facility Maintenance Tech - Bldg Trades"]
[null,"Facility Maintenance Tech - Mech Trades"]
[null,"Golf Professional"]
[null,"Print /Document Services Supervisor"]
[null,"Print/Document Services Technician"]
[null,"Specialty Trades Technician"]
[null,"Energy Utilities Specialist"]
[null,"Energy Utilities Supervisor"]
[null,"Energy Utilities Technician"]
[null,"High Voltage Distribution Specialist"]
[null,"High Voltage Distribution Supervisor"]
[null,"Utilities Plant Operator"]
[null,"Utilities Plant Supervisor"]
[null,"Transportation Supervisor"]
[null,"Vehicle/Equipment Operator"]
[null,"Vehicle/Equipment Repair Tech Supv"]
[null,"Vehicle/Equipment Repair Technician"]

{"sheet":"Instructions","index":2,"n_rows":99,"n_cols":3,"rows_kept":99,"merged":[[0,0,0,2],[31,0,41,0],[32,2,33,2],[34,2,35,2],[38,2,39,2],[40,2,41,2],[46,0,56,0],[48,2,49,2],[50,2,51,2],[53,2,54,2],[55,2,56,2],[66,0,73,0],[66,2,73,2],[89,0,90,2]]}
["RAINBOW FORM INSTRUCTIONS"]
["EMPLOYEE NAME",null,"List FIRST name, followed by LAST name (please use faculty name as listed in ConnectCarolina)"]
["EMPLOYEE ID/PID",null,"Enter PID"]
["WORK AUTHORIZATION - DOES INCREASE HAVE ACTUAL OR PREVAILING WAGE IMPACT?",null,"Select from drop down"]
["PRIMARY SCHOOL",null,"Select from drop down"]
["PRIMARY DEPT/DIVISION NAME AND NUMBER",null,"Select from drop down"]
["CURRENT PRIMARY EMPLOYEE TYPE",null,"Select from drop down"]
["NEW PRIMARY EMPLOYEE TYPE",null,"Select from drop down"]
["CURRENT PRIMARY POSITION NUMBER",null,"Enter current primary position number"]
["NEW PRIMARY POSITION NUMBER",null,"Enter new primary position number"]
["DOES EMPLOYEE HAVE EXISTING SECONDARY APPTS w/STIPENDS? ",null,"Select from drop down"]
["NEW PRIMARY POSITION NUMBER:",null,"Enter new primary rank position number"]
["IS INCREASE DUE TO A NEW SECONDARY APPT?",null,"Select from drop down"]
["IS INCREASE DUE TO A NEW SECONDARY APPT w/STIPEND?",null,"Select from drop down"]
["CURRENT SECONDARY RANK/TITLES",null,"If there is just one, select it from the drop down menu, if there is more than one secondary appt w/stipend, type in the titles"]
["NEW SECONDARY RANK/TITLES",null,"If there is just one, select it from the drop down menu, if there is more than one secondary appt w/stipend, type in the titles"]
["CURRENT SECONDARY POSITION EXPECTED END DATES AND POSITION NUMBERS",null,"Enter existing secondary appointment end dates and position number(s)"]
["NEW SECONDARY POSITION EXPECTED END DATES AND POSITION NUMBERS",null,"Enter new secondary appointment end dates and position number(s)"]
["PROPOSED EFFECTIVE DATE",null,"Enter proposed effective date - If you enter a retro-effective date 1/1/2015 or earlier, you'll get a message to contact your EHRA rep to discuss prior to submitting"]
["PROPOSED INCREASE IS APPLIED TO THE",null,"Select from drop down"]
["REASON FOR INCREASE",null,"Select from drop down"]
["HAS EMPLOYEE HAD OTHER INCREASES THIS FISCAL YEAR",null,"Select from drop down"]
["DATE OF INCREASE and INCREASE REASON",null,"Enter date of increase"]
[]
["JUNE 30TH BASE SALARY",null,"Enter June 30th base salary; NOTE: use full FTE salaries and do not enter cents on the form; do not create/enter your own formulas**"]
["SECONDARY STIPENDS",null,"Enter secondary stipends; NOTE: include secondary stipends/supplements, not task-based compensation such as course overload"]
["JUNE 30TH TOTAL SALARY",null,"Total salary will auto-populate"]
[]
["CURRENT BASE SALARY",null,"Enter current base salary"]
["CURRENT SECONDARY STIPENDS",null,"Enter current secondary stipends; NOTE: enter 0 if there is no stipend (error window will pop-up if you don't enter 0)"]
["CURRENT TOTAL SALARY",null,"Total salary will auto-populate"]
[]
[null,null,"Enter current base salary sources (see purple tags next to each source distribution); NOTE: if you get an error message (CHECK $ AMOUNTS) please check your funding grid and make corrections. Do not submit with error message."]
[]
[null,null,"Enter current stipend sources (see purple tags next to each source distribution); NOTE: if you get an error message (CHECK $ AMOUNTS) please check your funding grid and make corrections. Do not submit with error message."]
[]
[null,null,"This section auto-populates; NOTE: if you get an error message (CHECK $ AMOUNTS & TOTAL), please check your funding grid and make corrections"]
[]
[null,null,"NOTE: if the error message reads % MUST equal 100% please check your funding grid and make corrections.\nDo not submit with error message."]
[]
[null,null,"This section will auto-populate; NOTE: if you get an error message (CHECK $ AMOUNTS) please check your funding grid and make sure the totals match. Do not submit with error message."]
[]
[]
["PROPOSED/CURRENT BASE SALARY",null,"Enter proposed/current base salary"]
["PROPOSED/CURRENT SECONDARY STIPENDS",null,"Enter proposed/current secondary stipends; NOTE: enter 0 if there is no stipend"]
["RECOMMENDED TOTAL SALARY",null,"Total salary will auto-populate"]
[]
[]
[null,null,"Enter proposed/current base salary sources (see purple tags next to each source distribution); NOTE: if you get an error message (CHECK $ AMOUNTS) please check your funding grid and make corrections. Do not submit with error message."]
[]
[null,null,"Enter proposed/current stipend sources (see purple tags next to each source distribution); NOTE: if you get an error message (CHECK $ AMOUNTS) please check your funding grid and make corrections. Do not submit with error message."]
[]
[null,null,"This section auto-populates; NOTE: if you get an error message (CHECK $ AMOUNTS & TOTAL), please check your funding grid and make corrections"]
[null,null,"NOTE: if the error message reads % MUST be 100% please check your funding grid and make corrections.\nDo not submit with error message."]
[]
[null,null,"This section will auto-populate; NOTE: if you get an error message (CHECK $ AMOUNTS) please check your funding grid and make sure the totals match. Do not submit with error message."]
[]
[]
[null,null,"This section is required to be completed\nRANGE MIN and RANGE MAX are established by the respective school (your System Office/BOT approved faculty salary ranges are required to be used)\n50th PERCENTILE and 75th PERCENTILE will auto-populate\nSee NOTES section below re how to determine DEPT/RANK AVG SALARY**\nThe EHRA NF Compa-ratio will auto-populate as long as there is a proposed salary and EHRA NF Ref rate"]
["This link will take you to the EHRA NF Salary Structure page",null,"Click here for EHRA NF Reference Rates"]
[]
["CUMULATIVE % INCREASE TO 6/30 TOTAL SALARY FOR FISCAL YEAR:",null,"This entire section auto populates"]
["CUMULATIVE $$ INCREASE TO 6/30 TOTAL SALARY FOR FISCAL YEAR:"]
["TOTAL $$ AMOUNT OF STIPEND/SUPPLEMENT INCREASE FOR FISCAL YEAR:"]
["TOTAL INCREASE OF STIPEND/SUPPLEMENT FOR FISCAL YEAR AS % OF 6/30 BASE SALARY:"]
[]
[null,null,"ENTER NAME, POSITION NUMBER, CURRENT SALARY AND COMPA-RATIO REFERENCE RATE FOR COMPARISONS"]
{"$rows_empty":7}
["This link will take you to TarHeelReports",null,"https://tarheelreports.unc.edu/"]
[]
["SALARY PHILOSOPHY",null,"Provide how the salary/increase amount was determined; including standardizations, info related market data & source, internal equity, and any other school specific criteria, ie yrs experience, type of degree, rare/unique skill, etc. This includes secondary stipend determinations."]
["EMPLOYEE NAME",null,"Name will auto-populate"]
["EFFECTIVE DATE",null,"Effective date will auto-populate"]
[]
["Department/Center Head Approval",null,"Type Department/Center Head Name, Title, and Date of approval"]
["Dean/Vice Chancellor Approval",null,"Type Dean/Vice Chancellor Name, Title, and Date of approval"]
["EHRA HR Office Approval",null,"EHRA HR Office use ONLY, leave blank"]
["Prepared By",null,"Type Preparer Name, Title, and Date initiated"]
[]
["DEPARTMENT CERTIFICATION",null,"Certification is required"]
["Box 1",null,"Please thoroughly read the prompt and then check the box"]
["Box 2",null,"Please thoroughly read the prompt and then check the box - this box is specific to secondary appointments ONLY"]
[]
["**NOTES**"]
[]
["CURRENT RANK/TITLE",null,"Select primary rank or title from drop-down; Ex: Clinical Professor or Business Officer 3\nFor Distinguished Professors: It is not necessary to enter the full name of the Professorship (Lucy Van Pelt Distinguished Professorship of Peanut Psychiatry) on this line - entering Distinguished Professorship is sufficient"]
["NEW PRIMARY EHRA RANK/TITLE:",null,"Select new primary EHRA rank or title from drop-down; Ex: Distinguished Clinical Professor or Business Manager 1\nFor Distinguished Professors: It is not necessary to enter the full name of the Professorship (Lucy Van Pelt Distinguished Professorship of Peanut Psychiatry) on this line - entering Distinguished Professorship is sufficient"]
["CURRENT SECONDARY RANK/TITLES",null,"Select current secondary rank or title from drop-down; Ex: Assistant Director or Research Facility Manager\nIf there are multiple secondary titles (Assistant Director, Program Manager, Research Associate), you will need to type them in, as you can't select multiples in the drop-down\nIt is not necessary to enter the full title of the Director role (i.e. Director of Sunshine and Rainbows Program) on this line - entering the word Director is sufficient\nFor Distinguished Term Professors: It is not necessary to enter the full name of the Professorship (Violet Gray Distinguished Term Professorship of Peanut Blooms) on this line - entering Distinguished Term Professorship is sufficient"]
["NEW SECONDARY RANK/TITLES",null,"Select new secondary rank or title from drop-down; Ex: Associate Director or Research Operations Manager\nIf there are multiple secondary titles (Assistant Director, Program Manager, Research Associate), you will need to type them in, as you can't select multiples in the drop-down\nIt is not necessary to enter the full title of the Director role (i.e. Director of Sunshine and Rainbows Program) on this line - entering the word Director is sufficient\nFor Distinguished Term Professors: It is not necessary to enter the full name of the Professorship (Violet Gray Distinguished Term Professorship of Peanut Blooms) on this line - entering Distinguished Term Professorship is sufficient"]
["JUNE 30TH BASE SALARY",null,"If there is no June 30 salary use the CURRENT salary of the faculty member. The JUNE 30TH BASE SALARY line cannot be blank.\nWhen there is no June 30 salary and you use the CURRENT salary of the faculty member, note in the JUSTIFCATION section of the form."]
["DEPT/RANK AVERAGE SALARY",null,"The department average for a specific rank can be determined by running a salary alignment report in TarHeel Reports.  Select the EHRA Job Family, Select the Faculty Job Function Description, Faculty, Select the job code description, Select the Level 3 Description (school), and Select the Dept ID Description.  You can download the report, remove the non-compensated roles, and run an average of the salaries.  It is not necessary to include the report, simply enter the average into the form"]
["JUSTIFICATION",null,"This section will auto-populate based on the salary reason code selected on line 9. Answer questions via text boxes and drop down lists."]
["Additional Notes",null,"Service Period Changes - Should be done prior to implementing the salary increase, Ex: if someone's salary is increasing and the service period is changing based on a recruitment (for example), use the proposed service period salaries in the accounting section."]